Workbook

Sheet 1200A
G3: GENERAL
A5: PAYMENT | B5: ITEM | C5: DESCRIPTION | D5: UNIT | E5: QTY | F5: RATE | G5: AMOUNT
A6: REFERS | B6: NO
A9: SANS 1200 A | B9: 110.00 | C9: GENERAL | G9: =IF($E9>0,IF($E9="-","Rate Only",$E9*F9),"") -> 
C11: FIXED CHARGE ITEMS
A13: 8.3 | B13: 110.01 | C13: Contractual Requirements | D13: Sum | E13: 1
A15: 8.3.2 | B15: 110.02 | C15: Establishment of Facilities on Site
A17: SANS 1200 AB | B17: 110.02.01 | C17: Facilities for the Engineer
A19: PSA 8.2.1 | B19: 110.02.01.01 | C19: Furnished offices (3 No - 1 No Type 1, 1 No Type 2, 1 No Type 3) | D19: Sum | E19: 1
A21: PSA 8.2.1 | B21: 110.02.01.02 | C21: Computer equipment | D21: Sum | E21: 1
A23: PSA 8.2.1 | B23: 110.02.01.03 | C23: Nameboards (2 No) | D23: Sum | E23: 1
A25: PSA 8.2.1 | B25: 110.02.01.04 | C25: Carport | D25: Sum | E25: 1
A27: SANS 1200 A
A28: 8.3.2.1 | B28: 110.02.01.05 | C28: Kitchen | D28: Sum | E28: 1
B30: 110.02.01.06 | C30: Ablution and latrine facilities both male and female | D30: Sum | E30: 1
B32: 110.02.01.07 | C32: Survey equipment and assistance | D32: Sum | E32: 1
B34: 110.02.01.08 | C34: Safety equipment, including safety shoes, hard hat, eye protection, gloves, ear protection, dust mask, removable revolving orange light for vehicle & reflective vest for 10 No people | D34: Prov sum | E34: 1 | F34: 30,000.00 | G34: =E34*F34 -> 30,000.00
B36: 110.02.01.09 | C36: Overheads, charges and profit on safety equipment | D36: % | E36: =F34 -> 30,000.00 | F36: 10% | G36: =E36*F36 -> 3,000.00
A38: 8.3.2.2 | B38: 110.02.02 | C38: Facilities for the Contractor
B40: 110.02.02.01 | C40: Offices and storage sheds | D40: Sum | E40: 1
B42: 110.02.02.02 | C42: Workshops | D42: Sum | E42: 1
B44: 110.02.02.03 | C44: Laboratories | D44: Sum | E44: 1
B46: 110.02.02.04 | C46: Ablution and latrine facilities | D46: Sum | E46: 1
B48: 110.02.02.05 | C48: Tools and equipment | D48: Sum | E48: 1
B50: 110.02.02.06 | C50: Water Supply, Electrical power and communications | D50: Sum | E50: 1
B52: 110.02.02.07 | C52: Dealing with water | D52: Sum | E52: 1
B54: 110.02.02.08 | C54: Access | D54: Sum | E54: 1
B56: 110.02.02.09 | C56: Transport to and establish on site all Construction plant and equipment | D56: Sum | E56: 1
B58: 110.02.02.10 | C58: Mobile Toilets on Site | D58: Sum | E58: 1
A61: 1200 A | B61: Carried forward
G64: GENERAL
A67: PAYMENT | B67: ITEM | C67: DESCRIPTION | D67: UNIT | E67: QTY | F67: RATE | G67: AMOUNT
A68: REFERS | B68: NO
C71: Brought forward
A73: SANS 1200A
A74: 8.3.4 | B74: 110.03 | C74: Remove Contractors Site Establishment and make good | D74: Sum | E74: 1
B76: 110.03.01 | C76: Other fixed charge obligations not covered above (Tenderer to list)
B78: 110.03.01.01 | D78: Sum | E78: 1
B80: 110.03.01.02 | D80: Sum | E80: 1
B82: 110.03.01.03 | D82: Sum | E82: 1
B84: 110.03.01.04 | D84: Sum | E84: 1
A86: PSA 8.3.5 | B86: 110.04 | C86: Additional Contractual Obligations
A88: PSA 8.3.5.1 | B88: 110.04.01 | C88: Notice and warning to consumers | D88: Sum | E88: 1
A90: PSA 8.3.5.2 | B90: 110.04.02 | C90: OHS Act Obligations | D90: Sum | E90: 1
A92: PSA 8.3.5.3 | B92: 110.04.03 | C92: EMP Obligations | D92: Sum | E92: 1
A94: 8.3.5.4 | B94: 110.04.04 | C94: Dilapidation Survey | D94: Sum | E94: 1
C96: TIME RELATED ITEMS
A98: PSA 8.4.1 | B98: 110.05 | C98: Contractual Requirements | D98: Sum | E98: 1
A100: 8.4.2 | B100: 110.06 | C100: Operation and maintenance of facilities on site, for duration of construction, except where otherwise stated
A102: SANS 1200 AB | B102: 110.06.01 | C102: Facilities for the Engineer
A104: PSAB 8.2.2 | B104: 110.06.01.01 | C104: Furnished offices (3 No - 1 No Type 1, 1 No Type 2, 1 No Type 3) | D104: Sum | E104: 1
A106: PSAB 8.2.2 | B106: 110.06.01.02 | C106: Telephone (and computer equipment) | D106: Sum | E106: 1
A108: PSAB 8.2.2 | B108: 110.06.01.03 | C108: Carport | D108: Sum | E108: 1
A110: SANS 1200 A
A111: PSAB 8.3.2.1 | B111: 110.06.01.04 | C111: Kitchen | D111: Sum | E111: 1
B113: 110.06.01.06 | C113: Ablution and latrine facilities both male and female | D113: Sum | E113: 1
B115: 110.06.01.07 | C115: Survey equipment and assistance | D115: Sum | E115: 1
B117: 110.06.01.08 | C117: Safety equipment, including safety shoes, hard hat, eye protection, gloves, ear protection, dust mask, removable revolving orange light for vehicle & reflective vest for 10 No people | D117: Sum | E117: 1
A125: 1200 A | B125: Carried forward
G128: GENERAL
A131: PAYMENT | B131: ITEM | C131: DESCRIPTION | D131: UNIT | E131: QTY | F131: RATE | G131: AMOUNT
A132: REFERS | B132: NO
C135: Brought forward
A137: SANS 1200A
A138: 8.4.2.2 | B138: 110.06.02 | C138: Facilities for the Contractor
B140: 110.06.02.01 | C140: Offices and storage sheds | D140: Sum | E140: 1
B142: 110.06.02.02 | C142: Workshops | D142: Sum | E142: 1
B144: 110.06.02.03 | C144: Laboratories | D144: Sum | E144: 1
B146: 110.06.02.04 | C146: Ablution and latrine facilities | D146: Sum | E146: 1
B148: 110.06.02.05 | C148: Tools and equipment | D148: Sum | E148: 1
B150: 110.06.02.06 | C150: Water Supply, Electrical power and communications | D150: Sum | E150: 1
B152: 110.06.02.07 | C152: Dealing with water | D152: Sum | E152: 1
B154: 110.06.02.08 | C154: Plant | D154: Sum | E154: 1
B156: 110.06.02.09 | C156: First aid & medical services | D156: Sum | E156: 1
B158: 110.06.02.10 | C158: Transport arrangements for labour from all communities to and from workplace to central collection / drop-off point | D158: Sum | E158: 1
B160: 110.07 | C160: Supervision for Duration of Contract
A162: 8.4.3 | B162: 110.07.01 | C162: Company and head office overhead costs for the duration of the Contract | D162: months | E162: 18
A164: 8.4.5 | B164: 110.08 | C164: Other time related obligations not covered above (Tenderer to list)
B166: 110.08.01 | D166: months | E166: 18
B168: 110.08.02 | D168: months | E168: 18
B170: 110.08.03 | D170: months | E170: 18
B172: 110.08.04 | D172: months | E172: 18
A174: PSA 8.4.6 | B174: 110.09 | C174: Additional Obligations
A176: PSA 8.4.6.1 | B176: 110.09.01 | C176: OHS Act Obligations | D176: Sum | E176: 1
A178: PSA 8.4.6.2 | B178: 110.09.02 | C178: Security Services Costs | D178: Month | E178: 18
A180: PSA 8.4.6.3 | B180: 110.09.03 | C180: Electrical Safety Officer | D180: Month | E180: 18
A182: PSA 8.4.6.4 | B182: 110.09.04 | C182: CLO | D182: Prov sum | E182: 1 | F182: 900,000.00 | G182: =E182*F182 -> 900,000.00
B184: 110.09.05 | C184: Overheads, charges and profit on item 110.09.04 | D184: % | E184: =F182 -> 900,000.00 | F184: 10% | G184: =E184*F184 -> 90,000.00
A192: 1200 A | B192: Carried forward
G195: GENERAL
A198: PAYMENT | B198: ITEM | C198: DESCRIPTION | D198: UNIT | E198: QTY | F198: RATE | G198: AMOUNT
A199: REFERS | B199: NO
C202: Brought forward
A205: SANS 1200 A
A206: PSA 8.5 | B206: 110.10 | C206: Sums stated provisionally by the Engineer:
B208: 110.10.01 | C208: Works executed by Nominated Subcontractors
A210: PSA 8.5.2 | B210: 110.10.01.01 | C210: Alteration to existing services by authorities | D210: Prov sum | E210: 1 | F210: 714,609.60 | G210: =E210*F210 -> 714,609.60
B212: 110.10.01.02 | C212: Overheads, charges and profit on item 110.10.01.01 | D212: % | E212: =F210 -> 714,609.60 | F212: 10% | G212: =E212*F212 -> 71,460.96
B214: 110.10.01.03 | C214: Control survey by independent surveyor | D214: Prov sum | E214: 1 | F214: 360,000.00 | G214: =E214*F214 -> 360,000.00
B216: 110.10.01.04 | C216: Overheads, charges and profit on item 110.10.01.03 | D216: % | E216: =F214 -> 360,000.00 | F216: 10% | G216: =E216*F216 -> 36,000.00
B218: 110.10.01.05 | C218: Control tests by independent laboratory | D218: Prov sum | E218: 1 | F218: 119,101.60 | G218: =E218*F218 -> 119,101.60
B220: 110.10.01.06 | C220: Overheads, charges and profit on item 110.10.01.05 | D220: % | E220: =F218 -> 119,101.60 | F220: 10% | G220: =E220*F220 -> 11,910.16
B222: 110.10.01.07 | C222: Provision of photographic records | D222: Prov sum | E222: 1 | F222: 100,000.00 | G222: =E222*F222 -> 100,000.00
B224: 110.10.01.08 | C224: Overheads, charges and profit on item 110.10.01.07 | D224: % | E224: =F222 -> 100,000.00 | F224: 10% | G224: =E224*F224 -> 10,000.00
B226: 110.10.01.09 | C226: Temporary protection of services | D226: Prov sum | E226: 1 | F226: 595,508.00 | G226: =E226*F226 -> 595,508.00
B228: 110.10.01.10 | C228: Overheads, charges and profit on item 110.10.01.09 | D228: % | E228: =F226 -> 595,508.00 | F228: 10% | G228: =E228*F228 -> 59,550.80
B230: 110.10.01.11 | C230: Reinstatement of asphalt by JRA | D230: Prov sum | E230: 1 | F230: 2,000,000.00 | G230: =E230*F230 -> 2,000,000.00
B232: 110.10.01.12 | C232: Overheads, charges and profit on item 110.10.01.11 | D232: % | E232: =F230 -> 2,000,000.00 | F232: 10% | G232: =E232*F232 -> 200,000.00
B234: 110.10.01.13 | C234: Supply or hire of specialist equipment | D234: Prov sum | E234: 1 | F234: 2,000,000.00 | G234: =E234*F234 -> 2,000,000.00
B236: 110.10.01.14 | C236: Overheads, charges and profit on item 110.10.01.13 | D236: % | E236: 2,000,000.00 | F236: 10% | G236: =E236*F236 -> 200,000.00
B238: 110.10.01.15 | C238: Training of labour and SMMEs | D238: Prov sum | E238: 1
B240: 110.10.01.16 | C240: Overheads, charges and profit on item 110.10.01.15 | D240: % | E240: =+F238 -> 0
A242: PSA 8.4.2 | B242: 110.10.01.17 | C242: Telephone and data charges for Engineers Representative | D242: Prov sum | E242: 1 | F242: 50,000.00 | G242: =E242*F242 -> 50,000.00
B244: 110.10.01.18 | C244: Overheads, charges and profit on item 110.10.01.17 | D244: % | E244: =F242 -> 50,000.00 | F244: 10% | G244: =E244*F244 -> 5,000.00
A246: PSA 8.5.2 | B246: 110.10.01.19 | C246: Fixed-Charge items for the sub-contractors Contractual Requirements | D246: Prov sum | E246: 1 | F246: 297,754.00 | G246: =E246*F246 -> 297,754.00
B248: 110.10.01.20 | C248: Overhead, charges and profit for the Main Contractor to provide for fixed-charge items for the sub-contractors Contractual Requirements | D248: % | E248: =F246 -> 297,754.00 | F248: 10% | G248: =E248*F248 -> 29,775.40
A251: 1200 A | B251: Carried forward
G254: GENERAL
A257: PAYMENT | B257: ITEM | C257: DESCRIPTION | D257: UNIT | E257: QTY | F257: RATE | G257: AMOUNT
A258: REFERS | B258: NO
C261: Brought forward
A264: SANS 1200 A
A265: PSA 8.5.2 | B265: 110.10.01.21 | C265: Time Related items for the sub-contractors Contractual Requirements | D265: Prov sum | E265: 1 | F265: 535,960.00 | G265: =E265*F265 -> 535,960.00
B267: 110.10.01.22 | C267: Overhead, charges and profit for the Main Contractor to provide for time related items for the sub-contractors Contractual Requirements | D267: % | E267: =F265 -> 535,960.00 | F267: 10% | G267: =E267*F271 -> 53,596.00
A269: PSA 8.5.2 | B269: 110.10.01.23 | C269: Specials and fittings for tie-in to existing Water meter Chamber (Dale Road) | D269: Prov sum | E269: 1 | F269: 100,000.00 | G269: =F269 -> 100,000.00
B271: 110.10.01.24 | C271: Overheads, charges and profit on item 110.10.01.23 | D271: % | E271: =F269 -> 100,000.00 | F271: 10% | G271: =E271*F271 -> 10,000.00
A273: PSA 8.5.2 | B273: 110.10.01.25 | C273: Specials and fittings for tie-in to existing water pipe (Harry Galaun Drive) | D273: Prov sum | E273: 1 | F273: 100,000.00 | G273: =F273 -> 100,000.00
B275: 110.10.01.26 | C275: Overheads, charges and profit on item 110.10.01.25 | D275: % | E275: =F273 -> 100,000.00 | F275: 10% | G275: =E275*F275 -> 10,000.00
A277: PSA 8.5.2 | B277: 110.11 | C277: Remove and grub trees as instructed by JPCZ | D277: Prov sum | E277: 1 | F277: 200,000.00 | G277: =E277*F277 -> 200,000.00
B279: 110.11.01 | C279: Overheads, charges and profit on control tests by independent laboratory | D279: % | E279: =F277 -> 200,000.00 | F279: 10% | G279: =E279*F279 -> 20,000.00
A281: PSA 8.7 | B281: 110.12 | C281: Daywork (Provisional)
B283: 110.12.01 | C283: Allowance for labour | D283: Prov sum | E283: 1 | F283: 595,510.00 | G283: =F283 -> 595,510.00
B285: 110.12.02 | C285: Percentage adjustment to item 110.12.01 | D285: % | E285: =F283 -> 595,510.00 | F285: 10% | G285: =E285*F285 -> 59,551.00
B287: 110.12.03 | C287: Alowance for material | D287: Prov sum | E287: 1 | F287: 595,510.00 | G287: =F287 -> 595,510.00
B289: 110.12.04 | C289: Percentage adjustment to item 110.12.03 | D289: % | E289: =F287 -> 595,510.00 | F289: 10% | G289: =E289*F289 -> 59,551.00
B291: 110.12.05 | C291: Allowance for plant | D291: Prov sum | E291: 1 | F291: 595,510.00 | G291: =F291 -> 595,510.00
B293: 110.12.06 | C293: Percentage adjustment to item 110.12.05 | D293: % | E293: =F291 -> 595,510.00 | F293: 10% | G293: =E293*F293 -> 59,551.00
A295: PSA 8.8 | B295: 110.13 | C295: Temporary Works
A297: PSA 8.8.2 | B297: 110.13.01 | C297: Accommodation of traffic | D297: Sum | E297: 1
B299: 110.13.02 | C299: Location and protection of existing services
A301: PSA 8.8.4 | B301: 110.13.02.01 | C301: Electrical and other cables | D301: Sum | E301: 1
A303: PSA 8.8.5 | B303: 110.13.03 | C303: Survey and setting out of works | D303: Sum | E303: 1
A305: PSA 8.8.6 | B305: 110.13.04 | C305: Special water control | D305: Sum | E305: 1
A307: PSA 8.8.7 | B307: 110.13.05 | C307: Dealing with other service authorities, application for wayleaves, etc. | D307: Sum | E307: 1
A311: 1200 A | B311: Carried forward
G314: GENERAL
A317: PAYMENT | B317: ITEM | C317: DESCRIPTION | D317: UNIT | E317: QTY | F317: RATE | G317: AMOUNT
A318: REFERS | B318: NO
C321: Brought forward
A323: SANS 1200A
A324: PSA 8.9 | B324: 110.14 | C324: Compliance with OHS Act Regulations (including the Construction Regulations, 2014) | D324: Sum | E324: 1
A326: PSA 8.10 | B326: 110.15 | C326: Quality Assurance and Management Plan | D326: Sum | E326: 1
A328: PSA 8.11 | B328: 110.16 | C328: Compliance with the Environmental Management Plan | D328: Sum | E328: 1
B383: TOTAL SECTION 1200 A CARRIED TO SUMMARY

Sheet 1200A SMME
G2: GENERAL
A5: PAYMENT | B5: ITEM | C5: DESCRIPTION | D5: UNIT | E5: QTY | F5: RATE | G5: AMOUNT
A6: REFERS | B6: NO
A9: SANS 1200 A | B9: 111.00 | C9: GENERAL | G9: =IF($E9>0,IF($E9="-","Rate Only",$E9*F9),"") -> 
A10: SMME
A11: PSSC 1 | B11: 110.11.01.19 | C11: Value of Subcontracted works | D11: Prov sum | E11: 1 | F11: 12,959,777.02 | G11: =F11 -> 12,959,777.02
A13: PSSC 2 | B13: 110.11.01.20 | C13: Management fee for the Main Contractor to oversee sub-contracted works. (the main contractor will retain liability and responsibility for the management, scheduling, and quality) | D13: % | E13: =F11 -> 12,959,777.02
B67: TOTAL SECTION 1200 A SMME CARRIED TO SUMMARY | G67: =SUM(G8:G65) -> 12,959,777.02

Sheet 1200C
I3: SECTION 1200 C
A4: PAYMENT
A5: REFERS | B5: ITEM | E5: DESCRIPTION | F5: UNIT | G5: QUAN- | H5: RATE | I5: AMOUNT
A6: TO | B6: NO | G6: TITY
I7: =IF(OR(AND(G7="Prov",H7="Sum"),(H7="PC Sum")),". . . . . . . . .00",IF(ISERR(G7*H7),"",IF(G7*H7=0,"",ROUND(G7*H7,2)))) -> 
A8: SANS | B8: 130.00 | C8: SITE CLEARANCE
A9: 1200 C
A11: PSC | B11: 130.01 | C11: Clear and grub:
A12: 8.2.1
C13: .01 | D13: Areas (chambers, structures, etc) | F13: m² | G13: 1,322
C15: .02 | D15: Strips, 3,0 m wide (water) | F15: m | G15: 6,847
A17: 8.2.2 | B17: 130.02 | C17: Remove and grub large trees and tree
C18: stumps of girth:
C20: .01 | D20: Over 1,0 m and up to and including
D21: 2,0 m | F21: number | G21: 50
C23: .02 | D23: Over 2,0 m and up to and including
D24: 3,0 m | F24: number | G24: 10
B26: 130.03 | C26: Extra over item 130.02 above to Reinstate
C27: Trees:
C29: .01 | D29: Over 1,0 m and up to and including
D30: 2,0 m | F30: number | G30: 30
A32: 8.2.4 | B32: 130.04 | C32: Reclear surfaces (only on instructions
C33: from the Engineer):
C35: .01 | D35: Areas | F35: m² | G35: 50
C37: .02 | D37: Strips, 3,0 m wide (water) | F37: m | G37: 100
A39: 8.2.5 | B39: 130.05 | C39: Take down existing fences | F39: km | G39: 10
A41: 8.2.8 | B41: 130.06 | C41: Demolish and remove structures
C42: or buildings and dismantle steelwork etc.
C44: .01 | D44: Carport and Name Boards | F44: Number | G44: 115
C46: .02 | D46: Carefully remove paving blocks for | F46: m² | G46: 28,187
D47: re-use (car parking)
C49: .03 | D49: Asphalt surfacing (car parking) | F49: m² | G49: 1,000
C51: .04 | D51: Carefully remove paving blocks for
D52: re-use ( Erf 3544) | F52: m² | G52: 775
C54: .05 | D54: Remove existing block retaining wall, 2300mm high | F54: m | G54: 20
C56: .06 | D56: Carefully remove kerb for re-use | F56: m | G56: 100
B58: 130.07 | C58: Extra over item 130.06 above for:
C60: .01 | D60: Re-erection and Reinstatement of Carport | F60: Number | G60: 115
C62: .02 | D62: Reinstatement of Paving Blocks
D63: (car parking) | F63: m² | G63: 14,094
C65: .03 | D65: Reinstatement of Asphalt/ concrete paving | F65: m² | G65: 1,000
D66: (car parking)
C68: .04 | D68: Reinstatement of paving blocks for
D69: re-use (Erf 3544) | F69: m² | G69: 775
C71: .05 | D71: Reinstate kerbs | F71: m | G71: 100
B73: 130.08 | C73: Transport materials and debris to
C74: unspecified site and dump | F74: m³ | G74: 10
A77: 1200 C | B77: Carried forward
I80: SECTION 1200 C
A82: PAYMENT
A83: REFERS | B83: ITEM | E83: DESCRIPTION | F83: UNIT | G83: QUAN- | H83: RATE | I83: AMOUNT
A84: TO | B84: NO | G84: TITY
C86: Brought forward
A89: 8.2.10 | B89: 130.09 | C89: Remove topsoil to nominal depth of
C90: 150 mm and stockpile | F90: m³ | G90: 3,074
A92: PSC | B92: 130.10 | C92: Temporary fencing or hoarding:
A93: 8.2.11
C94: .01 | D94: 1,8 m barbed wire class B fence | F94: m | G94: 2,730
A96: PSC | B96: 130.11 | C96: Take down and re-erect existing fences
A97: 8.2.12
C98: .01 | D98: Weldmesh fencing | F98: m | G98: 30
C100: .02 | D100: Boundary Brick wall | F100: m | G100: 30
C102: .03 | D102: Double Brick wall with Palisade fence | F102: m | G102: 30
C104: .04 | D104: Palisade fence | F104: m | G104: 60
C106: .05 | D106: Clear View(vu) fence or similar | F106: m | G106: 150
C108: .06 | D108: Electrical fence, 5 lines installed above clear
D109: view fence | F109: m | G109: 150
C111: .07 | D111: Sliding gates with clearview fencing | F111: number | G111: 2
C113: .08 | D113: Turnstile gate | F113: Number | G113: 1
B115: 130.12 | C115: Re-erect fences
C117: .01 | D117: Weldmesh fencing | F117: m | G117: 15
C119: .02 | D119: Palisade fence | F119: m | G119: 30
C121: .03 | D121: Clear View(vu) fence or similar | F121: m | G121: 75
C123: .04 | D123: Electrical fence, 5 lines installed above clear | F123: m | G123: 75
D124: view fence
C126: .05 | D126: Turnstile gate | F126: Number | G126: 1
B128: 130.13 | C128: Extra over for supply and erection of new
C129: fencing material
C131: .01 | D131: Supply and install complete weldmesh
D132: fencing including excavation, concrete
D133: and backfill to posts, etc | F133: m | G133: 15
C135: .02 | D135: Excavate for boundry wall,
D136: including excvation, concrete and backfilling | F136: m | G136: 15
C138: .03 | D138: Construct boundry wall complete,
D139: including plaster and paint | F139: m² | G139: 36
C141: .04 | D141: Construct double Brick wall with Palisade
D142: fence complete, including excvation, concrete
D143: and backfilling | F143: m | G143: 30
C145: .05 | D145: Supply and install complete palisade fence
D146: including excvation, concrete and backfilling | F146: m | G146: 15
A150: 1200 C | B150: Carried forward
I153: SECTION 1200 C
A155: PAYMENT
A156: REFERS | B156: ITEM | E156: DESCRIPTION | F156: UNIT | G156: QUAN- | H156: RATE | I156: AMOUNT
A157: TO | B157: NO | G157: TITY
C159: Brought forward
A162: PSC | B162: 130.13 | C162: .06 | D162: Supply and install complete clear-vu fence or
A163: 8.2.12 | D163: similar including excvation, concrete | F163: m | G163: 75
D164: and backfilling
C166: .07 | D166: Supply and install complete electrical fence | F166: m | G166: 75
D167: with five lines above clear view fence
C169: .08 | D169: Supply and install complete sliding gate | F169: number | G169: 2
C171: .09 | D171: Construct new block retaining wall | F171: m² | G171: 23
A173: PSC | B173: 130.14 | C173: Final finishing and cleaning up of the
A174: 8.2.13 | C174: Site of the Works | F174: sum | G174: 1
I222: =IF(OR(AND(G222="Prov",H222="Sum"),(H222="PC Sum")),". . . . . . . . .00",IF(ISERR(G222*H222),"",IF(G222*H222=0,"",ROUND(G222*H222,2)))) -> 
B224: TOTAL SECTION 1200 C CARRIED TO SUMMARY

Sheet 1200D
I2: SECTION 1200 D
A4: PAYMENT
A5: REFERS | B5: ITEM | E5: DESCRIPTION | F5: UNIT | G5: QUAN- | H5: RATE | I5: AMOUNT
A6: TO | B6: NO | G6: TITY
I7: =IF(OR(AND(G7="Prov",H7="Sum"),(H7="PC Sum")),". . . . . . . . .00",IF(ISERR(G7*H7),"",IF(G7*H7=0,"",ROUND(G7*H7,2)))) -> 
A8: SANS | B8: 140.00 | C8: EARTHWORKS
A9: 1200 D
A11: PSD | B11: 140.01 | C11: Restricted excavation:
A12: 8.3.3
C13: .01 | D13: Excavate for chambers, restricted foundations,
D14: etc. in all materials, and use for backfill or
D15: embankment, or dispose:
D17: .01 | E17: Depth up to 2,0 m | F17: m³ | G17: 362
D19: .02 | E19: Depth over 2,0 m and up to 4,0 m | F19: m³ | G19: 362
D21: .03 | E21: Depth over 4,0 m and not exceeding 6m deep | F21: m³ | G21: 362
D23: .04 | E23: Depth over 6,0 m and up to 15,0 m | F23: m³ | G23: 228
C25: .02 | D25: Excavate for gabion boxes or mattresses in all
D26: all materials, and use for backfill or embankment,
D27: or dispose | F27: m³ | G27: 126
C29: .03 | D29: Extra over items 140.01.01 to
D30: 140.01.03 above for:
D32: .01 | E32: Intermediate excavation | F32: m³ | G32: 394
D34: .02 | E34: Hard rock excavation | F34: m³ | G34: 131
C36: .04 | D36: Extra over item 140.01 for hand
D37: excavation | F37: m³ | G37: 50
A39: 8.3.5 | B39: 140.02 | C39: Extra excavation in all materials to
C40: provide working space around structure | F40: m² | G40: 263
A42: 8.3.9 | B42: 140.04 | C42: Extra over items 140.01 and 140.02 for backfill or
C43: for fill material against structures | F43: m³ | G43: 166
A45: PSD | B45: 140.05 | C45: Existing services:
A46: 8.3.8
C47: .01 | D47: Hand excavation for locating and
D48: exposing existing services:
D50: .01 | E50: In roadways | F50: m³ | G50: 50
D52: .02 | E52: In all other areas | F52: m³ | G52: 50
A53: PSD
A54: 8.3.10 | B54: 140.06 | C54: Topsoiling | F54: m³ | G54: 3,074
I55: =IF(OR(AND(G55="Prov",H55="Sum"),(H55="PC Sum")),". . . . . . . . .00",IF(ISERR(G55*H55),"",IF(G55*H55=0,"",ROUND(G55*H55,2)))) -> 
A56: 8.3.11 | B56: 140.07 | C56: Grassing or other vegetation cover: | F56: m² | G56: 2,700
A58: PSD | B58: 140.08 | C58: Extra over items 140.02.01 and | I58: =IF(OR(AND(G58="Prov",H58="Sum"),(H58="PC Sum")),". . . . . . . . .00",IF(ISERR(G58*H58),"",IF(G58*H58=0,"",ROUND(G58*H58,2)))) -> 
A59: 8.3.14 | C59: 140.02 for temporary stockpiling | F59: m³ | G59: 1,313
A61: PSD | B61: 140.09 | C61: Extra over items 140.02.01 and 140.02 for disposing
A62: 8.3.15 | C62: of spoil material on site provided by the Contractor | F62: m³ | G62: 1,146
A64: SANS | B64: 140.10 | C64: Treatment of roadbed:
A65: 1200 DM
A66: 8.3.3 | C66: .01 | D66: Roadbed preparation and compaction
D67: of material to (under structure floor
D68: slabs):
D70: .01 | E70: Minimum of 90% of modified
E71: AASHTO maximum density | F71: m³ | G71: 10
D73: .02 | E73: Minimum of 93% of modified
E74: AASHTO maximum density | F74: m³ | G74: 81
C76: .02 | D76: Stone layer preparation and compaction of material to
D77: (under floor slab)
D79: .01 | E79: 100mm Thick stone layer | F79: m² | G79: =181*0.1 -> 18
B82: TOTAL SECTION 1200 D CARRIED TO SUMMARY

Sheet 1200DB
I2: SECTION 1200 DB
A4: PAYMENT
A5: REFERS | B5: ITEM | E5: DESCRIPTION | F5: UNIT | G5: QUAN- | H5: RATE | I5: AMOUNT
A6: TO | B6: NO | G6: TITY
I7: =IF(OR(AND(G7="Prov",H7="Sum"),(H7="PC Sum")),". . . . . . . . .00",IF(ISERR(G7*H7),"",IF(G7*H7=0,"",ROUND(G7*H7,2)))) -> 
A8: SANS | B8: 142.00 | C8: EARTHWORKS (PIPE TRENCHES)
A9: 1200 DB
C11: TRENCHES FOR WATER PIPES
A13: PSDB | B13: 142.01 | C13: Excavate in all materials for trenches,
A14: 8.3.2 | C14: backfill, compact and dispose of surplus
C15: material:
C17: .01 | D17: Pipes over 125 mm dia up to 400 mm
D18: dia for depths:
D20: .02 | E20: Over 1,0 m up to 2,0 m | F20: m | G20: 62
C22: .02 | D22: Pipes over 500 mm dia up to 850 mm
D23: dia for depths:
D25: .01 | E25: Up to 1,0 m | F25: m | G25: 28 | I25: =IF(OR(AND(G25="Prov",H25="Sum"),(H25="PC Sum")),". . . . . . . . .00",IF(ISERR(G25*H25),"",IF(G25*H25=0,"",ROUND(G25*H25,2)))) -> 
D27: .02 | E27: Over 1,0 m up to 2,0 m | F27: m | G27: 838
D29: .03 | E29: Over 2,0 m up to 3,0 m | F29: m | G29: 4,152
D31: .04 | E31: Over 3,0 m up to 4,0 m | F31: m | G31: 1,311
D33: .05 | E33: Over 4,0 m | F33: m | G33: 513
A35: PSDB | B35: 142.02 | C35: Extra over item 142.01 above for:
A36: 8.3.2
C37: .01 | D37: Intermediate excavation | F37: m³ | G37: 3,377
C39: .02 | D39: Hard rock excavation | F39: m³ | G39: 3,608
C41: .03 | D41: Hand excavation where ordered by the
D42: Engineer:
D44: .01 | E44: Soft material | F44: m³ | G44: 200
D46: .02 | E46: Intermediate material | F46: m³ | G46: 100
D48: .03 | E48: Hard material | F48: m³ | G48: 10
C50: .04 | D50: Backfill stabilized with 5% cement
D51: where directed by the Engineer | F51: m³ | G51: 10 | I51: =IF(OR(AND(G51="Prov",H51="Sum"),(H51="PC Sum")),". . . . . . . . .00",IF(ISERR(G51*H51),"",IF(G51*H51=0,"",ROUND(G51*H51,2)))) -> 
C53: .05 Soilcrete backfill where directed by | D53: Soilcrete backfill where directed by the
D54: Engineer | F54: m³ | G54: 100 | I54: =IF(OR(AND(G54="Prov",H54="Sum"),(H54="PC Sum")),". . . . . . . . .00",IF(ISERR(G54*H54),"",IF(G54*H54=0,"",ROUND(G54*H54,2)))) -> 
A56: 8.3.2 | B56: 142.03 | C56: Excavate and dispose of unsuitable | I56: =IF(OR(AND(G56="Prov",H56="Sum"),(H56="PC Sum")),". . . . . . . . .00",IF(ISERR(G56*H56),"",IF(G56*H56=0,"",ROUND(G56*H56,2)))) -> 
C57: material from trench bottom | F57: m³ | G57: 3,608 | I57: =IF(OR(AND(G57="Prov",H57="Sum"),(H57="PC Sum")),". . . . . . . . .00",IF(ISERR(G57*H57),"",IF(G57*H57=0,"",ROUND(G57*H57,2)))) -> 
I58: =IF(OR(AND(G58="Prov",H58="Sum"),(H58="PC Sum")),". . . . . . . . .00",IF(ISERR(G58*H58),"",IF(G58*H58=0,"",ROUND(G58*H58,2)))) -> 
B59: 142.04 | C59: Excavation ancillaries: | I59: =IF(OR(AND(G59="Prov",H59="Sum"),(H59="PC Sum")),". . . . . . . . .00",IF(ISERR(G59*H59),"",IF(G59*H59=0,"",ROUND(G59*H59,2)))) -> 
A60: 8.3.3
C61: .01 | D61: Make up deficiency in backfill material:
D63: .01 | E63: From other necessary excavations
E64: on Site | F64: m³ | G64: 10
D66: .02 | E66: By importation from commercial or
E67: off-site sources selected by the
E68: Contractor | F68: m³ | G68: 10
I71: =IF(OR(AND(G71="Prov",H71="Sum"),(H71="PC Sum")),". . . . . . . . .00",IF(ISERR(G71*H71),"",IF(G71*H71=0,"",ROUND(G71*H71,2)))) -> 
A74: 1200 DB | B74: Carried forward
I78: SECTION 1200 DB
A79: PAYMENT
A80: REFERS | B80: ITEM | E80: DESCRIPTION | F80: UNIT | G80: QUAN- | H80: RATE | I80: AMOUNT
A81: TO | B81: NO | G81: TITY
C83: Brought forward
I85: =IF(OR(AND(G85="Prov",H85="Sum"),(H85="PC Sum")),". . . . . . . . .00",IF(ISERR(G85*H85),"",IF(G85*H85=0,"",ROUND(G85*H85,2)))) -> 
A86: 8.3.3 | B86: 142.04 | C86: .02 | D86: Compaction in road crossings
B87: (cont)
D88: .01 | E88: 93% of modified AASHTO density | F88: m³ | G88: 150
I90: =IF(OR(AND(G90="Prov",H90="Sum"),(H90="PC Sum")),". . . . . . . . .00",IF(ISERR(G90*H90),"",IF(G90*H90=0,"",ROUND(G90*H90,2)))) -> 
A92: 8.3.4 | B92: 142.05 | C92: Particular items:
C94: .01 | D94: Shore trench opposite structure or service | F94: m | G94: 2,730
C96: .02 | D96: Temporary Works: Control water
D97: inflow in pipeline:
D99: .01 | E99: For new tie-in connection to existing
E100: chamber pipework (Feeder pipeline) | F100: sum | G100: 1
D102: .02 | E102: For new tie-in connection into
E103: exisitng water pipes (Supply pipeline) | F103: sum | G103: 5
A104: PSDB
A105: 8.3.5 | B105: 142.06 | C105: Existing services that intersect or
C106: adjoin a pipe trench:
C108: .01 | D108: Services that intersect a trench:
D110: .01 | E110: Fence crossings (all types) | F110: number | G110: 12
D112: .02 | E112: Eskom electrical cable crossings | F112: number | G112: 10
D114: .03 | E114: DFA cable crossings | F114: number | G114: 5
D116: .04 | E116: Stormwater pipe crossings | F116: number | G116: 5
D118: .05 | E118: Water pipe crossings | F118: number | G118: 5
D120: .06 | E120: Sewer pipe crossings | F120: number | G120: 3
D122: .07 | E122: 3 m wide driveways containing
E123: block paving | F123: number | G123: 2
D125: .08 | E125: 3 m wide driveways containing
E126: concrete paving | F126: number | G126: 2 | I126: =IF(OR(AND(G126="Prov",H126="Sum"),(H126="PC Sum")),". . . . . . . . .00",IF(ISERR(G126*H126),"",IF(G126*H126=0,"",ROUND(G126*H126,2)))) -> 
D128: .09 | E128: 6 m wide driveways containing
E129: block paving | F129: number | G129: 8 | I129: =IF(OR(AND(G129="Prov",H129="Sum"),(H129="PC Sum")),". . . . . . . . .00",IF(ISERR(G129*H129),"",IF(G129*H129=0,"",ROUND(G129*H129,2)))) -> 
D131: .10 | E131: 6 m wide driveways containing
E132: concrete paving | F132: number | G132: 2 | I132: =IF(OR(AND(G132="Prov",H132="Sum"),(H132="PC Sum")),". . . . . . . . .00",IF(ISERR(G132*H132),"",IF(G132*H132=0,"",ROUND(G132*H132,2)))) -> 
A134: PSDB | B134: 142.06 | C134: .02 | D134: Services that adjoin a trench: | I134: =IF(OR(AND(G134="Prov",H134="Sum"),(H134="PC Sum")),". . . . . . . . .00",IF(ISERR(G134*H134),"",IF(G134*H134=0,"",ROUND(G134*H134,2)))) -> 
A135: 8.3.5
D136: .01 | E136: Fencing (all types) | F136: m | G136: 2,817
D138: .02 | E138: Stormwater pipes | F138: m | G138: 100
D140: .03 | E140: Water pipes | F140: m | G140: 485
D142: .04 | E142: Sewer pipes | F142: m | G142: 580 | I142: =IF(OR(AND(G142="Prov",H142="Sum"),(H142="PC Sum")),". . . . . . . . .00",IF(ISERR(G142*H142),"",IF(G142*H142=0,"",ROUND(G142*H142,2)))) -> 
D144: .05 | E144: Eskom electrical cable crossings | F144: m | G144: 200 | I144: =IF(OR(AND(G144="Prov",H144="Sum"),(H144="PC Sum")),". . . . . . . . .00",IF(ISERR(G144*H144),"",IF(G144*H144=0,"",ROUND(G144*H144,2)))) -> 
I148: =IF(OR(AND(G148="Prov",H148="Sum"),(H148="PC Sum")),". . . . . . . . .00",IF(ISERR(G148*H148),"",IF(G148*H148=0,"",ROUND(G148*H148,2)))) -> 
A150: 1200 DB | B150: Carried forward
I154: SECTION 1200 DB
A155: PAYMENT
A156: REFERS | B156: ITEM | E156: DESCRIPTION | F156: UNIT | G156: QUAN- | H156: RATE | I156: AMOUNT
A157: TO | B157: NO | G157: TITY
C159: Brought forward
A161: PSDB
A162: 8.3.6 | B162: 142.07 | C162: Finishing: | I162: =IF(OR(AND(G162="Prov",H162="Sum"),(H162="PC Sum")),". . . . . . . . .00",IF(ISERR(G162*H162),"",IF(G162*H162=0,"",ROUND(G162*H162,2)))) -> 
C164: .01 | D164: Reinstate road surfaces complete with
D165: all courses:
D167: .01 | E167: Gravel on shoulders | F167: m³ | G167: 10
A169: 8.3.6 | B169: 142.07 | D169: .02 | E169: Asphalt of thickness 40 mm in | I169: =IF(OR(AND(G169="Prov",H169="Sum"),(H169="PC Sum")),". . . . . . . . .00",IF(ISERR(G169*H169),"",IF(G169*H169=0,"",ROUND(G169*H169,2)))) -> 
B170: (cont) | E170: parking area | F170: m² | G170: 450
D172: .03 | E172: Gravel surfacing | F172: m³ | G172: 10
I173: =IF(OR(AND(G173="Prov",H173="Sum"),(H173="PC Sum")),". . . . . . . . .00",IF(ISERR(G173*H173),"",IF(G173*H173=0,"",ROUND(G173*H173,2)))) -> 
A174: PSDB | I174: =IF(OR(AND(G174="Prov",H174="Sum"),(H174="PC Sum")),". . . . . . . . .00",IF(ISERR(G174*H174),"",IF(G174*H174=0,"",ROUND(G174*H174,2)))) -> 
A175: 8.3.6 | B175: 142.06 | D175: .04 | E175: Paving blocks/bricks | F175: m² | G175: 450
I176: =IF(OR(AND(G176="Prov",H176="Sum"),(H176="PC Sum")),". . . . . . . . .00",IF(ISERR(G176*H176),"",IF(G176*H176=0,"",ROUND(G176*H176,2)))) -> 
D177: .05 | E177: Kerbing | F177: m | G177: 50
A179: PSDB | B179: 142.07 | C179: Accommodation of traffic | F179: sum | G179: 1
A180: 8.3.7 | I180: =IF(OR(AND(G180="Prov",H180="Sum"),(H180="PC Sum")),". . . . . . . . .00",IF(ISERR(G180*H180),"",IF(G180*H180=0,"",ROUND(G180*H180,2)))) -> 
A182: PSDB | B182: 142.08 | C182: Supply all barricading and support | F182: Sum | G182: 1
A183: 8.3.13 | C183: as required for the construction of the
C184: bulk water line (within Erven 3544,
C185: Juskei View Property)
B226: TOTAL SECTION 1200 DB CARRIED TO SUMMARY

Sheet 1200DK
I2: SECTION 1200 DK
A4: PAYMENT
A5: REFERS | B5: ITEM | E5: DESCRIPTION | F5: UNIT | G5: QUAN- | H5: RATE | I5: AMOUNT
A6: TO | B6: NO | G6: TITY
I7: =IF(OR(AND(G7="Prov",H7="Sum"),(H7="PC Sum")),". . . . . . . . .00",IF(ISERR(G7*H7),"",IF(G7*H7=0,"",ROUND(G7*H7,2)))) -> 
A8: SANS | B8: 146.00 | C8: GABIONS AND PITCHING
A9: 1200 DK
A11: 8.2.1 | B11: 146.01 | C11: Surface preparation for bedding of
C12: gabions: 5 no. Scour Valves
C14: .01 | D14: Cavities filled with approved excavated
D15: material or rock | F15: m² | G15: 126
A17: 8.2.2 | B17: 146.02 | C17: Gabions:
C19: .01 | D19: Gabion boxes of galvanized wire:
D21: .01 | E21: 100 mm x 100 mm mesh,
E22: 2,7 mm dia wire, 1,0 m x
E23: 1,0 m x 0,5 m boxes | F23: m³ | G23: 25
C25: .02 | D25: Gabion mattresses of galvanized wire,
D26: up to 0,3 m deep:
D28: .01 | E28: 80 mm x 100 mm mesh,
E29: 2,6 mm dia wire, 6,0 m x
E30: 2,0 m x 0,3 m mattress | F30: m³ | G30: 38
A32: 8.2.4 | B32: 146.03 | C32: Geotextile:
C34: .01 | D34: Grade 4 or approved equivalent | F34: m² | G34: 147
B79: TOTAL SECTION 1200 DK CARRIED TO SUMMARY

Sheet 2001 CC1
I3: SECTION 2001 CC1
A4: PAYMENT
A5: REFERS | B5: ITEM | E5: DESCRIPTION | F5: UNIT | G5: QUAN- | H5: RATE | I5: AMOUNT
A6: TO | B6: NO | G6: TITY
I7: =IF(OR(AND(G7="Prov",H7="Sum"),(H7="PC Sum")),". . . . . . . . .00",IF(ISERR(G7*H7),"",IF(G7*H7=0,"",ROUND(G7*H7,2)))) -> 
A8: SANS | B8: 170.00 | C8: CONCRETE (STRUCTURAL)
A9: 2001 CC1
C11: SCHEDULED FORMWORK ITEMS
A13: SD8.2.1 | B13: 170.01 | C13: Rough:
C15: .01 | D15: Vertical formwork to:
D17: .01 | E17: Outsides of sumps (floor edge
E18: and sides) | F18: m² | G18: 9
D20: .02 | E20: Outsides of base | F20: m² | G20: 47
D22: .03 | E22: Footing | F22: m² | G22: 47
D24: .04 | E24: Outsides of access chamber 1 walls
E25: upto 14m high | F25: m² | G25: 333
D27: .05 | E27: Outsides of access chamber 2 walls
E28: upto 6m high | F28: m² | G28: 309
C30: .02 | D30: Boxing out
D32: .01 | E32: 600 x 600 x 750mm deep Sump | F32: number | G32: 5
A34: SD8.2.2 | B34: 170.02 | C34: Smooth:
C36: .01 | D36: Vertical formwork to:
D38: .01 | E38: Insides of chamber walls | F38: m² | G38: 10
D40: .02 | E40: Insides of access chamber 1 walls
E41: up to 14m high | F41: m² | G41: 292
D43: .03 | E43: Insides of access chamber 2 walls
E44: up to 6m high | F44: m² | G44: 293
D46: .04 | E46: Outsides of chamber walls | F46: m² | G46: 10
D48: .05 | E48: Insides of sumps | F48: m² | G48: 6
D50: .06 | E50: Outsides of plinths and thrust
E51: blocks | F51: m² | G51: 853
D53: .07 | E53: Outsides of roof slabs | F53: m² | G53: 21
D55: .08 | E55: Sides of downstand and upstand beams | F55: m² | G55: 20 | I55: =IF(OR(AND(G55="Prov",H55="Sum"),(H55="PC Sum")),". . . . . . . . .00",IF(ISERR(G55*H55),"",IF(G55*H55=0,"",ROUND(G55*H55,2)))) -> 
D57: .09 | E57: Sides of Capping Beams | F57: m² | G57: 16 | I57: =IF(OR(AND(G57="Prov",H57="Sum"),(H57="PC Sum")),". . . . . . . . .00",IF(ISERR(G57*H57),"",IF(G57*H57=0,"",ROUND(G57*H57,2)))) -> 
C59: .04 | D59: Horizontal formwork to:
D61: .01 | E61: Soffits of roof slabs (propped up exceeding
E62: 6,0m up to 7,5m) | F62: m² | G62: 14
D64: .02 | E64: Soffits of roof slabs (propped up exceeding
E65: 12,5m up to 14m) | F65: m² | G65: 64
D67: .03 | E67: Soffits of beams (propped up exceeding
E68: 6,0m up to 7,5m) | F68: m² | G68: 4
D70: .04 | E70: Soffits of Capping Beams (propped up
E71: exceeding 6,0m up to 7,5m) | F71: m² | G71: 11
I73: =IF(OR(AND(G73="Prov",H73="Sum"),(H73="PC Sum")),". . . . . . . . .00",IF(ISERR(G73*H73),"",IF(G73*H73=0,"",ROUND(G73*H73,2)))) -> 
A77: 2001 CC1 | B77: Carried forward
I81: SECTION 2001 CC1
A82: PAYMENT
A83: REFERS | B83: ITEM | E83: DESCRIPTION | F83: UNIT | G83: QUAN- | H83: RATE | I83: AMOUNT
A84: TO | B84: NO | G84: TITY
C86: Brought forward
I88: =IF(OR(AND(G88="Prov",H88="Sum"),(H88="PC Sum")),". . . . . . . . .00",IF(ISERR(G88*H88),"",IF(G88*H88=0,"",ROUND(G88*H88,2)))) -> 
A89: SD8.2.6 | B89: 170.04 | C89: Box out holes/form voids:
C91: .01 | D91: Small circular, of diameter up to and including
D92: 0,35 m, and in the following depth ranges:
D94: .01 | E94: 0 m up to and including 0,5 m
E95: (for 100 mm dia ventilator sleeve
E96: in roof slab) | F96: number | G96: 18 | I96: =IF(OR(AND(G96="Prov",H96="Sum"),(H96="PC Sum")),". . . . . . . . .00",IF(ISERR(G96*H96),"",IF(G96*H96=0,"",ROUND(G96*H96,2)))) -> 
C98: .02 | D98: Large, circular, of diameter over 0,35 m up to and
D99: including 0,7 m and in the following depth ranges:
D101: .01 | E101: 0 m up to and including 0,5 m
E102: (for 700 mm dia manhole cover
E103: and frame in roof slab) | F103: number | G103: 16
C105: SCHEDULED REINFORCEMENT ITEMS
A107: SD8.3.1 | B107: 170.05 | C107: Mild-steel and high-tensile steel bars
C108: (all diameters) | F108: t | G108: 37
C110: SCHEDULED CONCRETE ITEMS
A112: SD8.4.2 | B112: 170.06 | C112: Blinding layer:
C114: .01 | D114: Class 15 MPa/19 mm concrete of: | I114: =IF(OR(AND(G114="Prov",H114="Sum"),(H114="PC Sum")),". . . . . . . . .00",IF(ISERR(G114*H114),"",IF(G114*H114=0,"",ROUND(G114*H114,2)))) -> 
D116: .01 | E116: 50 mm thickness | F116: m² | G116: 65
D118: .02 | E118: 75 mm thickness | F118: m² | G118: 181
A120: SD8.4.3 | B120: 170.07 | C120: Strength concrete:
C122: .01 | D122: Class 20 MPa/19 mm concrete in:
D124: .01 | E124: Thrust blocks | F124: m³ | G124: 311
D126: .02 | E126: Plinths | F126: m³ | G126: 3
C128: .02 | D128: Class 30 MPa/19 mm concrete in:
D130: .01 | E130: Footing | F130: m³ | G130: 22
D132: .02 | E132: Surface bed | F132: m³ | G132: 49
D134: .03 | E134: Floor slabs and sumps | F134: m³ | G134: 2
D136: .04 | E136: Walls | F136: m³ | G136: 202
D138: .05 | E138: Roof slabs and upstands | F138: m³ | G138: 24
D140: .06 | E140: Beams | F140: m³ | G140: 4
D142: .07 | E142: Capping Beams | F142: m³ | G142: 8 | I142: =IF(OR(AND(G142="Prov",H142="Sum"),(H142="PC Sum")),". . . . . . . . .00",IF(ISERR(G142*H142),"",IF(G142*H142=0,"",ROUND(G142*H142,2)))) -> 
A144: SD8.4.4 | B144: 170.08 | C144: Unformed surface finishes:
C146: .01 | D146: Wood-floated finishes to:
D148: .01 | E148: Floors and sumps | F148: m² | G148: 130 | I148: =IF(OR(AND(G148="Prov",H148="Sum"),(H148="PC Sum")),". . . . . . . . .00",IF(ISERR(G148*H148),"",IF(G148*H148=0,"",ROUND(G148*H148,2)))) -> 
C150: .02 | D150: Steel-floated finishes to:
D152: .01 | E152: Roof slabs and upstands | F152: m² | G152: 78 | I152: =IF(OR(AND(G152="Prov",H152="Sum"),(H152="PC Sum")),". . . . . . . . .00",IF(ISERR(G152*H152),"",IF(G152*H152=0,"",ROUND(G152*H152,2)))) -> 
D154: .02 | E154: Plinths and thrust blocks including forming half
E155: round segments for pipes | F155: m² | G155: 67
I156: =IF(OR(AND(G156="Prov",H156="Sum"),(H156="PC Sum")),". . . . . . . . .00",IF(ISERR(G156*H156),"",IF(G156*H156=0,"",ROUND(G156*H156,2)))) -> 
A158: 2001 CC1 | B158: Carried forward
I162: SECTION 2001 CC1
A163: PAYMENT
A164: REFERS | B164: ITEM | E164: DESCRIPTION | F164: UNIT | G164: QUAN- | H164: RATE | I164: AMOUNT
A165: TO | B165: NO | G165: TITY
C167: Brought forward
I169: =IF(OR(AND(G169="Prov",H169="Sum"),(H169="PC Sum")),". . . . . . . . .00",IF(ISERR(G169*H169),"",IF(G169*H169=0,"",ROUND(G169*H169,2)))) -> 
A170: SD8.4.4 | B170: 170.08 | D170: .03 | E170: Capping beams | F170: m² | G170: 30 | I170: =IF(OR(AND(G170="Prov",H170="Sum"),(H170="PC Sum")),". . . . . . . . .00",IF(ISERR(G170*H170),"",IF(G170*H170=0,"",ROUND(G170*H170,2)))) -> 
B171: (cont)
A173: SD8.4.8 | B173: 170.09 | C173: Screeds
C175: .01 | D175: 50mm thick average screed to falls | I175: =IF(OR(AND(G175="Prov",H175="Sum"),(H175="PC Sum")),". . . . . . . . .00",IF(ISERR(G175*H175),"",IF(G175*H175=0,"",ROUND(G175*H175,2)))) -> 
D176: on roof slab (16-75mm thick) | F176: m² | G176: 76
C178: .02 | D178: 25mm thick average screed to falls on surface bed | F178: m² | G178: 128 | I178: =IF(OR(AND(G178="Prov",H178="Sum"),(H178="PC Sum")),". . . . . . . . .00",IF(ISERR(G178*H178),"",IF(G178*H178=0,"",ROUND(G178*H178,2)))) -> 
C180: .03 | D180: Cement : sand floor screeds with
D181: falls including a smooth towelled | I181: =IF(OR(AND(G181="Prov",H181="Sum"),(H181="PC Sum")),". . . . . . . . .00",IF(ISERR(G181*H181),"",IF(G181*H181=0,"",ROUND(G181*H181,2)))) -> 
D182: finish to inside of jacked culvert | F182: m² | G182: 234
A184: SD8.6 | B184: 170.11 | C184: Manufacture (or supply) and erect precast elements
C185: for units bigger than 0,5 m³ of formed concrete:
C187: .01 | D187: The following types and sizes, complete with
D188: box-outs for covers, etc, lifting handles or hooks,
D189: reinforcing (allow 120 kg/m³), smooth off-shutter
D190: finish to all surfaces, drip grooves, etc:
D192: .01 | E192: 3,275 m x 1,370 m x 200 mm thick roof slab
E193: panel as shown on Drawing No.
E194: 111242-0000-DRG-WW-0501 | F194: number | G194: 15
D196: .02 | E196: 2,820 m x 1,350 m x 200 mm thick roof slab
E197: panel as shown on Drawing No.
E198: 111242-0000-DRG-WW-0502 | F198: number | G198: 5
D200: .03 | E200: 2,820 m x 1,050 m x 200 mm thick roof slab
E201: panel as shown on Drawing No.
E202: 111242-0000-DRG-WW-0502 | F202: number | G202: 20
D204: .04 | E204: 2,45 m x 2,45 m x 150 mm thick roof slab
E205: panel, tapered down to 125 mm thick around
E206: edges as shown on Drawing No.
E207: 111242-0000-DRG-WW-0500 | F207: number | G207: 9
D209: .05 | E209: 2,700 m x 1,443 m x 150 mm thick
E210: roof slab panel as shown on
E211: Drawing No.
E212: 111242-0000-DRG-WW-0508 | F212: number | G212: 6
D214: .06 | E214: Square manhole shaft unit size
E215: 2,0 m x 2,0 m x 1,0 m high internally with
E216: 125 mm thick walls complete with toggle type
E217: joints as supplied by SPC or equal approved
E218: as shown on Drawing No.
E219: 111242-0000-DRG-WW-0500 | F219: number | G219: 18
D221: .07 | E221: 5600 m x 1,200 m x 150 mm thick roof slab
E222: complete with and including 12mm stainless
E223: round bar lifting hooks,removable slab
E224: 111242-0000-DRG-WW-0513 | F224: number | G224: 2 | I224: =IF(OR(AND(G224="Prov",H224="Sum"),(H224="PC Sum")),". . . . . . . . .00",IF(ISERR(G224*H224),"",IF(G224*H224=0,"",ROUND(G224*H224,2)))) -> 
D226: .08 | E226: 8759 x 1200 x 150mm Precast pre-stressed slab
E227: complete with and including 12mm stainless
E228: round bar lifting hooks,removable slab
E229: 111242-0000-DRG-WW-0513 | F229: number | G229: 3
A232: 2001 CC1 | B232: Carried forward
I236: SECTION 2001 CC1
A237: PAYMENT
A238: REFERS | B238: ITEM | E238: DESCRIPTION | F238: UNIT | G238: QUAN- | H238: RATE | I238: AMOUNT
A239: TO | B239: NO | G239: TITY
C241: Brought forward
A244: SD8.6 | B244: 170.11 | D244: .09 | E244: 4379 m x 1200 m x 150 mm thick precast
B245: (cont) | E245: lockable lid over concrete slab
E246: 111242-0000-DRG-WW-0513 | F246: number | G246: 2
I247: =IF(OR(AND(G247="Prov",H247="Sum"),(H247="PC Sum")),". . . . . . . . .00",IF(ISERR(G247*H247),"",IF(G247*H247=0,"",ROUND(G247*H247,2)))) -> 
A248: SD8.8 | B248: 170.12 | C248: HD bolts and miscellaneous metal work:
C250: .01 | D250: Steel strap pipe fixing bracket complete with
D251: malthoid packings as shown on Drawing No's
D252: 111242-0000-DRG-WW-0502-0503
D254: .01 | E254: 200 mm dia pipe | F254: number | G254: 10
D256: .02 | E256: 700 mm dia pipe | F256: number | G256: 48 | I256: =IF(OR(AND(G256="Prov",H256="Sum"),(H256="PC Sum")),". . . . . . . . .00",IF(ISERR(G256*H256),"",IF(G256*H256=0,"",ROUND(G256*H256,2)))) -> 
C258: .02 | D258: 10 mm thick x 2.020 m long x 1,60 m girth L-shaped | I258: =IF(OR(AND(G258="Prov",H258="Sum"),(H258="PC Sum")),". . . . . . . . .00",IF(ISERR(G258*H258),"",IF(G258*H258=0,"",ROUND(G258*H258,2)))) -> 
D259: galvanized steel plate fixed with chemical anchors
D260: at maximum 200 mm centres in both directions to
D261: concrete walls and floors as shown on Drawing No.
D262: 111242-0000-DRG-WW-0502 | F262: number | G262: 5
I263: =IF(OR(AND(G263="Prov",H263="Sum"),(H263="PC Sum")),". . . . . . . . .00",IF(ISERR(G263*H263),"",IF(G263*H263=0,"",ROUND(G263*H263,2)))) -> 
C264: .03 | D264: Galvanized mild steel grid formed of 100 mm x
D265: 3 mm thick x 1 600 mm long flat section base plate
D266: with 20 mm dia x 150 mm long studs welded on at
D267: 150 mm centres and six times bolted to concrete
D268: with chemical anchors as shown on Drawing No.
D269: 111242-0000-DRG-WW-0502 | F269: number | G269: 70
A271: SD8.12 | B271: 170.13 | C271: Cast in of pipes with or without puddle
C272: flanges:
C274: .01 | D274: Up to 300 mm nominal bore: | I274: =IF(OR(AND(G274="Prov",H274="Sum"),(H274="PC Sum")),". . . . . . . . .00",IF(ISERR(G274*H274),"",IF(G274*H274=0,"",ROUND(G274*H274,2)))) -> 
D276: .01 | E276: Through 200 mm thick wall | F276: number | G276: 10
I277: =IF(OR(AND(G277="Prov",H277="Sum"),(H277="PC Sum")),". . . . . . . . .00",IF(ISERR(G277*H277),"",IF(G277*H277=0,"",ROUND(G277*H277,2)))) -> 
D278: .02 | E278: Through 300 mm thick wall | F278: number | G278: 5
C280: .02 | D280: Over 300 mm up to 700 mm nominal
D281: bore:
D283: .01 | E283: Through 200 mm thick floor slab | F283: number | G283: 9
D285: .02 | E285: Through 250 mm thick wall | F285: number | G285: 10
D287: .03 | E287: Through 450 mm thick wall | F287: number | G287: 2 | I287: =IF(OR(AND(G287="Prov",H287="Sum"),(H287="PC Sum")),". . . . . . . . .00",IF(ISERR(G287*H287),"",IF(G287*H287=0,"",ROUND(G287*H287,2)))) -> 
A289: SD8.13 | B289: 170.14 | C289: Miscellaneous work other than metal | I289: =IF(OR(AND(G289="Prov",H289="Sum"),(H289="PC Sum")),". . . . . . . . .00",IF(ISERR(G289*H289),"",IF(G289*H289=0,"",ROUND(G289*H289,2)))) -> 
C290: work:
C292: .01 | D292: Malthoid insulation between steel pipes and steel
D293: straps:
D295: .01 | E295: 3 mm thick x 50 mm wide strips | F295: m | G295: 119
I296: =IF(OR(AND(G296="Prov",H296="Sum"),(H296="PC Sum")),". . . . . . . . .00",IF(ISERR(G296*H296),"",IF(G296*H296=0,"",ROUND(G296*H296,2)))) -> 
D297: .02 | E297: 3 mm thick x 60 mm wide strips | F297: m | G297: 119
D299: .03 | E299: 10 mm thick x 70 mm wide strips | F299: m | G299: 10
C301: .02 | D301: Malthoid insulation between steel pipes and | I301: =IF(OR(AND(G301="Prov",H301="Sum"),(H301="PC Sum")),". . . . . . . . .00",IF(ISERR(G301*H301),"",IF(G301*H301=0,"",ROUND(G301*H301,2)))) -> 
D302: concrete surfaces:
D304: .01 | E304: 3 mm thick x 200 mm wide strips | F304: m | G304: 80
D306: .02 | E306: 3 mm thick x 250 mm wide strips | F306: m | G306: 80 | I306: =IF(OR(AND(G306="Prov",H306="Sum"),(H306="PC Sum")),". . . . . . . . .00",IF(ISERR(G306*H306),"",IF(G306*H306=0,"",ROUND(G306*H306,2)))) -> 
A309: 2001 CC1 | B309: Carried forward
I313: SECTION 2001 CC1
A314: PAYMENT
A315: REFERS | B315: ITEM | E315: DESCRIPTION | F315: UNIT | G315: QUAN- | H315: RATE | I315: AMOUNT
A316: TO | B316: NO | G316: TITY
C318: Brought forward
... 30 more rows

Sheet 1200HA
I3: SECTION 1200 HA
A4: PAYMENT
A5: REFERS | B5: ITEM | E5: DESCRIPTION | F5: UNIT | G5: QUAN- | H5: RATE | I5: AMOUNT
A6: TO | B6: NO | G6: TITY
I7: =IF(OR(AND(G7="Prov",H7="Sum"),(H7="PC Sum")),". . . . . . . . .00",IF(ISERR(G7*H7),"",IF(G7*H7=0,"",ROUND(G7*H7,2)))) -> 
A8: SANS | B8: 181.00 | C8: STRUCTURAL STEELWORK (SUNDRY
A9: 1200 HA | C9: ITEMS)
A10: PSHA
A12: 8.3.1 | B12: 181.01 | C12: Structural steel:
C14: .01 | D14: Pipe support brackets complete with
D15: 100 x 10mm flat bar clamp lined with
D16: 990 x 100 x 10mm thick rubber strip
D17: including 6mm thick gusset connected by
D18: M16 SS bolts with nyloc nuts and 10mm
D19: thick plate connected to 75 x 75 x 6mm
D20: SS angle with 6mm thick ribs. Fixed to
D21: concrete using 80 x 80 x 8mm SS angle
D22: and M16 stainless steel chemical anchors | F22: number | G22: 10
C24: .02 | D24: 254 x 146 x 32 I- Section Crawl Beam with
D25: manual chain blocks fixed to soffits of culverts
D26: with "Hilti Hit RE-500 inside the jacking tunnel
D27: drawing no. 111242-0000-DRG-WW-0512 | F27: m | G27: 92
A29: 8.3.2 | B29: 181.02 | C29: Handrails
C31: .01 | D31: Stainless steel balustrading formed with 43mm
D32: diameter x 3mm thick stanchions at 1200mm
D33: centres, 33mm diameter x 2.6mm thick top and
D34: bottom rails, filled with 15mm diameter vertical
D35: bars at 125mm centres, finished on all surfaces
D36: with epoxy coated painted finish and erected
D37: complete in strict accordance with manufactures
D38: instructions as per drwg 111242-0000-DRG-SS-3002:
D40: .01 | E40: Horizontal | F40: m | G40: 33
A42: 8.3.3 | B42: 181.03 | C42: Ladders, complete and installed:
C44: .01 | D44: Stainless steel access ladders
D45: bolted to concrete walls complete as
D46: shown on Drawings
D48: .01 | E48: Air Valve Chambers, exceeding 1m and not | I48: =IF(OR(AND(G48="Prov",H48="Sum"),(H48="PC Sum")),". . . . . . . . .00",IF(ISERR(G48*H48),"",IF(G48*H48=0,"",ROUND(G48*H48,2)))) -> 
E49: exceeding 2m high, drawing
E50: 111242-0000-DRG-WW-0500 | F50: number | G50: 6
D52: .02 | E52: Air Valve Chambers, exceeding 2m and not
E53: exceeding 3m high, drawing
E54: 111242-0000-DRG-WW-0500 | F54: number | G54: 3
I55: =IF(OR(AND(G55="Prov",H55="Sum"),(H55="PC Sum")),". . . . . . . . .00",IF(ISERR(G55*H55),"",IF(G55*H55=0,"",ROUND(G55*H55,2)))) -> 
D56: .03 | E56: Isolating Valve Chambers, exceeding 2m
E57: and not exceeding 3m high, drawing
E58: 111242-0000-DRG-WW-0501 | F58: number | G58: 1
D60: .04 | E60: Isolating Valve Chambers, exceeding 3m
E61: and not exceeding 4m high, drawing
E62: 111242-0000-DRG-WW-0501 | F62: number | G62: 4
D64: .05 | E64: Scour Valve Chambers, exceeding 2m
E65: and not exceeding 3m high, drawing
E66: 111242-0000-DRG-WW-0502 | F66: number | G66: 3
D68: .06 | E68: Scour Valve Chambers, exceeding 3m
E69: and not exceeding 4m high, drawing
E70: 111242-0000-DRG-WW-0502 | F70: number | G70: 1
D72: .07 | E72: Scour Valve Chambers, exceeding 4m
E73: and not exceeding 5m high, drawing
E74: 111242-0000-DRG-WW-0502 | F74: number | G74: 1
D76: .08 | E76: Water Meter Chambers, exceeding 2m
E77: and not exceeding 3m high, drawing
E78: 111242-0000-DRG-WW-0508 | F78: number | G78: 1
A81: 2001 CC1 | B81: Carried forward
I85: SECTION 1200 HA
A86: PAYMENT
A87: REFERS | B87: ITEM | E87: DESCRIPTION | F87: UNIT | G87: QUAN- | H87: RATE | I87: AMOUNT
A88: TO | B88: NO | G88: TITY
C90: Brought forward
A93: 8.3.3 | B93: 181.03 | C93: .01 | D93: .09 | E93: Water Meter Chambers, exceeding 3m
B94: (Cont) | E94: and not exceeding 4m high, drawing
E95: 111242-0000-DRG-WW-0508 | F95: number | G95: 3
D97: .10 | E97: Water Meter Chambers, exceeding 4m
E98: and not exceeding 5m high, drawing
E99: 111242-0000-DRG-WW-0508 | F99: number | G99: 1
C101: .02 | D101: Galvanized mild steel ladders
D102: bolted to concrete walls complete as
D103: shown on Drawing no.
D104: 111242-0000-DRG-WW-0515
D106: .01 | E106: Access Chamber 1 (10m high
E107: cat-ladder) | F107: number | G107: 2
C109: .03 | D109: Galvanized mild steel ladders
D110: bolted to concrete walls complete as
D111: shown on Drawing no.
D112: 111242-0000-DRG-WW-0513
D114: .01 | E114: Access Chamber 1 (4.45m high
E115: cat-ladder) | F115: number | G115: 1
A117: 8.3.4 | B117: 181.04 | C117: 25 x 4.5mm Galvanised banded grating, including
C118: structural beams and posts complete and
C119: installed with frames:
C121: .01 | D121: As shown on Drawing No
D122: 111242-0000-DRG-SS-3002 & 3003 | F122: m² | G122: 8
C124: 40 x 3mm Galvanised and banded mentis grating,
C125: including angle and fishtail lugs complete as per
C126: drawing 111242-DRG-SS-3001
C128: .01 | D128: Sump cover | F128: m² | G128: 2
B130: 181.05 | C130: Staircases, complete and installed :
C132: .01 | D132: Galvanised ladder, 1.5m high, as shown on
D133: Drawing No 111242-0000-DRG-SS-3002 & 3003 | F133: number | G133: 5
B164: TOTAL SECTION 1200 HA CARRIED TO SUMMARY

Sheet 1200L
I3: SECTION 1200 L
A4: PAYMENT
A5: REFERS | B5: ITEM | E5: DESCRIPTION | F5: UNIT | G5: QUAN- | H5: RATE | I5: AMOUNT
A6: TO | B6: NO | G6: TITY
A8: SANS | B8: 210.00 | C8: MEDIUM-PRESSURE PIPELINES
A9: 1200 L
C10: 1 | D10: Fittings are regarded as special pipes
D11: and not measured as extra over items
C13: 2 | D13: Direction changes < 5° not measured
D14: as specials and must be
D15: accommodated in the laying of the
D16: pipes
C18: 3 | D18: All new specials to be manufactured
D19: and lined and coated as per
D20: pipe specifications included in this
D21: Project Document
C23: 4 | D23: All Steel Pipelines shall be Spirally
D24: welded and butt welded (Longitudinal
D25: Welded pipes shall not be considered in
D26: these circumstances)
A28: 8.2.1 | B28: 210.01 | C28: Supply, lay and bed on bedding as shown on
C29: Drawings no. 111242-0000-DRG-WW-0301 to -0310
C30: or fixed above ground inside structures, complete
C31: with on-site welding joints, testing, etc:
C33: .01 | D33: Grade X42 to API 5L welded steel pipes,
D34: with Single Coat Solvent Free Liquid Epoxy
D35: lining (600 microns DFT) and coating with Rigid
D36: Polyurethane (2000 microns DFT) or similar
D37: approved by JW:
D39: .01 | E39: 610 mm dia x 8 mm thickness | F39: m | G39: 3,166
D41: .02 | E41: 710 mm dia x 8 mm thickness | F41: m | G41: 2,886
A43: 8.2.1 | B43: 210.02 | C43: Supply, lay, joint and install inside concrete
C44: sleeve pipe including skids, steel straps, malthoid
C45: packings, sand, cement, bentonite, grout, etc.
C46: complete with on-site welding joints, testing, etc
C47: as shown on Drawing no 111242-0000-
C48: WW-DRG-0506
C50: .01 | D50: Grade X42 to API 5L welded steel pipes,
D51: with Single Coat Solvent Free Liquid Epoxy
D52: lining (600 microns DFT) and coating with Rigid
D53: Polyurethane (2000 microns DFT) or similar
D54: approved by JW:
D56: .01 | E56: 609 mm dia x 8 mm thickness
E57: (pipes in 18 m lengths) | F57: m | G57: 371
D59: .02 | E59: 710 mm dia x 8 mm thickness
E60: (pipes in 18 m lengths) | F60: m | G60: 291
A62: 8.2.1 | B62: 210.03 | C62: Supply, joint Horizontal Drilling pipes:
C64: .01 | D64: HDPE PE 100 PN 16 SDR11 pipes, to
D65: SANS 4427, butt welded to SANS 0269
D67: .01 | E67: 630 mm dia (pipes in 6 m lengths) | F67: m | G67: 371
D69: .02 | E69: 710 mm dia (pipes in 6 m lengths) | F69: m | G69: 291
A76: 1200 L | B76: Carried forward
I80: SECTION 1200 L
A81: PAYMENT
A82: REFERS | B82: ITEM | E82: DESCRIPTION | F82: UNIT | G82: QUAN- | H82: RATE | I82: AMOUNT
A83: TO | B83: NO | G83: TITY
C85: Brought forward
A88: 8.2.1 | B88: 210.03 | C88: Supply, lay and bed on flexible pipe
C89: bedding, complete with couplings:
C91: .02 | D91: mPVC class 16, to SANS 966 Part 2
D92: pipes with spigot and socket ends:
D94: .01 | E94: 315 mm dia pipe | F94: m | G94: 62
A96: 8.2.2 | B96: 210.04 | C96: Extra over items 210.01 and 210.02 for the
C97: supplying laying, jointing and bedding below
C98: ground or installed in structures, of fittings,
C99: specials and valves on Grade X42 to API 5L
C100: welded or flanged steel pipes, with Single Coat
C101: Solvent Free Liquid Epoxy lining and coating
C102: with Rigid Polyurethane (2000 microns DFT) or
C103: similar approved by JW:
C105: ISOLATING VALVE CHAMBER ( x 5):
C107: .01 | D107: Drawing No. 111242-0000-DRG-WW-0501:
D108: Steel grade X42, 8 mm wall thickness, Single
D109: Coat Solvent Free Liquid Epoxy lined and coated
D110: with Rigid Polyurethane, flange drilling to
D111: SANS 1123 T1600/3:
D113: .01 | E113: 711 mm dia x 610 mm dia x
E114: 430 mm steel reducer with
E115: 1 500 mm long integral straight
E116: pipe, item 1 | F116: number | G116: 10
D118: .02 | E118: 610 mm dia x 1500mm integral
E119: straight pipe, item 1 | F119: number | G119: 10
D121: .03 | E121: 610 mm dia x 1 450 mm steel
E122: puddle pipe, flanged one end,
E123: item 2 | F123: number | G123: 10
D125: .04 | E125: 610 mm dia x 219 mm dia steel
E126: tee, all ends flanged, item 3 | F126: number | G126: 5
D128: .05 | E128: 600 mm dia VOSA non-rising
E129: wedge gate valve or similar
E130: approved, item 4 (Mech) | F130: number | G130: 5
D132: .06 | E132: 610 mm dia x 219 mm dia steel
E133: tee, all ends flanged, item 5 | F133: number | G133: 5
D135: .07 | E135: 219 mm dia x 90 degree steel
E136: bend, flanged, item 6 | F136: number | G136: 10
D138: .08 | E138: 219 mm dia x 446 mm steel
E139: straight pipe, flanged both sides,
E140: item 7 | F140: number | G140: 10
D142: .09 | E142: 200 mm dia VOSA non-rising
E143: wedge gate valve or similar
E144: approved, item 8 (Mech) | F144: number | G144: 5
A154: 1200 L | B154: Carried forward
I158: SECTION 1200 L
A159: PAYMENT
A160: REFERS | B160: ITEM | E160: DESCRIPTION | F160: UNIT | G160: QUAN- | H160: RATE | I160: AMOUNT
A161: TO | B161: NO | G161: TITY
C163: Brought forward
C166: AIR VALVE CHAMBERS ( x 9):
A168: 8.2.2 | B168: 210.04 | C168: .02 | D168: Drawing No. 111242-0000-DRG-WW-0500:
B169: (cont) | D169: Steel grade X42, 8 mm wall thickness, Single Coat
D170: Solvent Free Liquid Epoxy lining and coating with
D171: Rigid Polyurethane, flange drilling to SANS 1123
D172: T1600/3:
D174: .01 | E174: 711 mm dia x 355 mm dia x
E175: 1181 mm steel tee, flanged both ends,
E176: with crotch plates, item 1 | F176: number | G176: 5
D178: .02 | E178: 610 mm dia x 355 mm dia x 1181 mm steel
E179: tee, flanged both ends, with crotch plates,
E180: item 1 | F180: number | G180: 4
D182: .03 | E182: 150 mm x 60 mm x 25 mm triangular shaped
E183: support bracket welded on, item 2 | F183: number | G183: 36
D185: .04 | E185: 520 mm dia x 30 mm thick flange one end
E186: fitting with 100 mm dia x 250 mm steel
E187: spool pipe with 220 mm dia x 14 mm thick
E188: flange one end, and lifting hooks, item 3 | F188: number | G188: 7
D190: .05 | E190: 520 mm dia x 30 mm thick flange one end
E191: fitting with 200 mm dia x 250 mm steel
E192: spool pipe with 340 mm dia x 22 mm thick
E193: flange one end, and lifting hooks, item 3 | F193: number | G193: 2
D195: .06 | E195: 100 mm dia non-rising spindle
E196: resilient seal gate valve, item 4 | F196: number | G196: 7
D198: .07 | E198: 200 mm dia VOSA non-rising spindle wedge
E199: gate valve, or similar approved, item 4 | F199: number | G199: 2
D201: .08 | E201: 100 mm dia Vent-O-Mat Series RBX double
E202: orifice air valve with anti shock orifice
E203: mechanism, item 5 | F203: number | G203: 7
D205: .09 | E205: 200 mm dia Vent-O-Mat Series RBX double
E206: RBX double orifice air valve with anti shock
E207: orifice mechanism, item 5 | F207: number | G207: 2
D209: .10 | E209: Site welding, testing and repairs:
E211: .01 711 mm dia pipe to fitting or special | F211: number | G211: 7
E213: .02 610 mm dia pipe to fitting or special | F213: number | G213: 2
A226: 1200 L | B226: Carried forward
I230: SECTION 1200 L
A231: PAYMENT
A232: REFERS | B232: ITEM | E232: DESCRIPTION | F232: UNIT | G232: QUAN- | H232: RATE | I232: AMOUNT
A233: TO | B233: NO | G233: TITY
C235: Brought forward
C238: SCOUR VALVE CHAMBERS ( x 5):
A240: 8.2.2 | B240: 210.04 | C240: .03 | D240: Drawing No.
B241: (cont) | D241: 111242-0000-DRG-WW-0502: Steel
D242: grade X42, 8 mm wall thickness, Single Coat
D243: Solvent Free Liquid Epoxy lining and coating
D244: with Rigid Polyurethane, flange drilling to
D245: SANS 1123 T1600/3:
D247: .01 | E247: 711 mm dia x 4 800 mm double puddle pipe
E248: combination fitting with CP connection point,
E249: comprising 711 mm dia x 219 mm dia flanged
E250: scour outlet, item 1 | F250: number | G250: 3
D252: .02 | E252: 610 mm dia x 4 800 mm double puddle pipe
E253: combination fitting with CP connection point,
E254: comprising 610 mm dia x 219 mm dia flanged
E255: scour outlet, item 1 | F255: number | G255: 2
D257: .03 | E257: 200 mm dia wedge gate valve, both ends,
E258: flanged, item 2 (Mech) | F258: number | G258: 10
D260: .04 | E260: 219 mm dia x 614 mm spool pipe, both ends
E261: flanged, item 3 | F261: number | G261: 5
D263: .05 | E263: 219 mm dia x 1 062 mm puddle pipe with CP
E264: connection point, item 5 | F264: number | G264: 5
D266: .06 | E266: Site welding, testing and repairs:
E268: .01 711 mm dia pipe to fitting or special | F268: number | G268: 3
E270: .02 610 mm dia pipe to fitting or special | F270: number | G270: 2
C272: WATER METER CHAMBERS ( x 5):
C274: .06 | D274: Drawing No. 111242-0000-DRG-WW-0508:
D275: Steel grade X42, 8 mm wall thickness, 16 bar,
D276: Single Coat Solvent Free Liquid Epoxy lining and
D277: coating with Rigid Polyurethane, flange drilling to
D278: SANS 1123 T1600/3:
D280: .01 | E280: 315 mm dia x 219 mm dia steel reducer with
E281: 315 mm dia integral straight mPVC pipe,
E282: both ends flanged, item 1 | F282: number | G282: 10
D284: .02 | E284: 219 mm dia x 1 200 mm steel puddle pipe,
E285: both ends flanged, item 2 | F285: number | G285: 10
D287: .03 | E287: 200 mm dia VOSA non-rising wedge gate
E288: valve or similar approved, item 3 (Mech) | F288: number | G288: 10
D290: .04 | E290: 219 mm dia x 1 000 mm dia steel
E291: pipe, both ends flanged, item 4 | F291: number | G291: 5
D293: .05 | E293: Woltman WP-type water meter or
E294: similar approved, item 5 | F294: number | G294: 5
D296: .06 | E296: 219 mm dia x 582 mm dia steel
E297: pipe, one end flanged, item 6 | F297: number | G297: 5
D299: .07 | E299: 219 mm dia x 200 mm dia steel straight pipe,
E300: flanged both ends, item 7 | F300: number | G300: 5
D302: .08 | E302: Sensus DN200 water strainer or
E303: similar approved, item 8 | F303: number | G303: 5
A306: 1200 L | B306: Carried forward
I310: SECTION 1200 L
A311: PAYMENT
A312: REFERS | B312: ITEM | E312: DESCRIPTION | F312: UNIT | G312: QUAN- | H312: RATE | I312: AMOUNT
A313: TO | B313: NO | G313: TITY
C315: Brought forward
... 176 more rows

Sheet 1200LB
I2: SECTION 1200 LB
A4: PAYMENT
A5: REFERS | B5: ITEM | E5: DESCRIPTION | F5: UNIT | G5: QUAN- | H5: RATE | I5: AMOUNT
A6: TO | B6: NO | G6: TITY
I7: =IF(OR(AND(G7="Prov",H7="Sum"),(H7="PC Sum")),". . . . . . . . .00",IF(ISERR(G7*H7),"",IF(G7*H7=0,"",ROUND(G7*H7,2)))) -> 
A8: SANS | B8: 211.00 | C8: BEDDING (PIPES)
A9: 1200 LB
C11: BEDDING FOR WATER PIPES
C13: Note: | E13: Beddings as shown on Drawing
E14: No 111242-0000-DRG-WW-0504
A15: PSLB
A16: 8.2.1 | B16: 211.01 | C16: Provision of bedding from trench
C17: excavation:
C19: .01 | D19: Selected granular material | F19: m³ | G19: 20
C21: .02 | D21: Selected fill material | F21: m³ | G21: 20
A23: PSLB | B23: 211.02 | C23: Supply only of bedding by importation:
A24: 8.2.2 | I24: =IF(OR(AND(G24="Prov",H24="Sum"),(H24="PC Sum")),". . . . . . . . .00",IF(ISERR(G24*H24),"",IF(G24*H24=0,"",ROUND(G24*H24,2)))) -> 
C25: .01 | D25: From other necessary excavations:
D27: .01 | E27: Selected granular material | F27: m³ | G27: 100
D29: .02 | E29: Selected fill material | F29: m³ | G29: 100
C31: .02 | D31: From commercial sources:
D33: .01 | E33: Selected granular material | F33: m³ | G33: 3,389
D35: .02 | E35: Selected fill material | F35: m³ | G35: 4,612
A37: 8.2.4 | B37: 211.04 | C37: Encasing of pipes in concrete: | I37: =IF(OR(AND(G37="Prov",H37="Sum"),(H37="PC Sum")),". . . . . . . . .00",IF(ISERR(G37*H37),"",IF(G37*H37=0,"",ROUND(G37*H37,2)))) -> 
C39: .01 | D39: 30MPa/19mm concrete encasing, incl
D40: formwork
D42: .01 | E42: 710 mm dia steel pipe | F42: m³ | G42: 100
A44: 8.2.7 | B44: 211.05 | C44: Extra over item 211.04 above for:
C46: .01 | D46: Mild steel reinforcement | F46: t | G46: 10
A48: SANS | B48: 211.07 | C48: High-tensile welded mesh in the
A49: 2001 CC | C49: following:
A50: 8.3.2
C51: .01 | D51: Ref 395 in concrete encasing around
D52: pipes | F52: m² | G52: 100
I53: =IF(OR(AND(G53="Prov",H53="Sum"),(H53="PC Sum")),". . . . . . . . .00",IF(ISERR(G53*H53),"",IF(G53*H53=0,"",ROUND(G53*H53,2)))) -> 
B74: TOTAL SECTION 1200 LB CARRIED TO SUMMARY

Sheet 1200LE
I2: SECTION 1200 LE
A4: PAYMENT
A5: REFERS | B5: ITEM | E5: DESCRIPTION | F5: UNIT | G5: QUAN- | H5: RATE | I5: AMOUNT
A6: TO | B6: NO | G6: TITY
I7: =IF(OR(AND(G7="Prov",H7="Sum"),(H7="PC Sum")),". . . . . . . . .00",IF(ISERR(G7*H7),"",IF(G7*H7=0,"",ROUND(G7*H7,2)))) -> 
A8: SANS | B8: 214.00 | C8: STORMWATER DRAINAGE
A9: 1200 LE
A11: 8.2.10 | B11: 214.01 | C11: Accessories:
C13: .01 | D13: Submersible pump connected to 160mm dia pipe | F13: No | G13: 2 | I13: =IF(OR(AND(G13="Prov",H13="Sum"),(H13="PC Sum")),". . . . . . . . .00",IF(ISERR(G13*H13),"",IF(G13*H13=0,"",ROUND(G13*H13,2)))) -> 
A15: PSLE | B15: 214.02 | C15: Pipes in subsurface drains:
A16: 8.2.14
C17: .01 | D17: Normal duty uPVC pipes complete
D18: with couplings:
D20: .01 | E20: 150 mm internal dia, perforated | F20: m | G20: 40 | I20: =IF(OR(AND(G20="Prov",H20="Sum"),(H20="PC Sum")),". . . . . . . . .00",IF(ISERR(G20*H20),"",IF(G20*H20=0,"",ROUND(G20*H20,2)))) -> 
A22: PSLE | B22: 214.03 | C22: Geofabric
A23: 8.2.15
C24: .01 | D24: A4 Bidum Geotextile or similar approved | F24: m² | G24: 66 | I24: =IF(OR(AND(G24="Prov",H24="Sum"),(H24="PC Sum")),". . . . . . . . .00",IF(ISERR(G24*H24),"",IF(G24*H24=0,"",ROUND(G24*H24,2)))) -> 
A26: PSLE | B26: 214.04 | C26: Crushed stone in subsurface drains
A27: 8.2.16
C28: .01 | D28: Single sized crushed stone, ,nominal size
D29: 19mm clean washed aggregate | F29: m³ | G29: 15 | I29: =IF(OR(AND(G29="Prov",H29="Sum"),(H29="PC Sum")),". . . . . . . . .00",IF(ISERR(G29*H29),"",IF(G29*H29=0,"",ROUND(G29*H29,2)))) -> 
B85: TOTAL SECTION 1200 LE CARRIED TO SUMMARY

Sheet 1200LG
I3: SECTION 1200 LG
A4: PAYMENT
A5: REFERS | B5: ITEM | E5: DESCRIPTION | F5: UNIT | G5: QUAN- | H5: RATE | I5: AMOUNT
A6: TO | B6: NO | G6: TITY
I7: =IF(OR(AND(G7="Prov",H7="Sum"),(H7="PC Sum")),". . . . . . . . .00",IF(ISERR(G7*H7),"",IF(G7*H7=0,"",ROUND(G7*H7,2)))) -> 
A8: SANS | B8: 216.00 | C8: PIPE JACKING
A9: 1200 LG
C10: ROAD CROSSING:1
A12: 8.2.1 | B12: 216.01 | C12: Jacking establishment:
C14: .01 | D14: Fixed charges | F14: sum | G14: 1
C16: .02 | D16: Time-related charges | F16: sum | G16: 1
A18: 8.2.2 | B18: 216.02 | C18: Supply of pipes to be jacked:
C20: .01 | D20: 1 371 mm dia (OD), 100D concrete sleeve
D21: pipe (in-the-wall joint), according to SANS 677 | F21: m | G21: 77
I22: =IF(OR(AND(G22="Prov",H22="Sum"),(H22="PC Sum")),". . . . . . . . .00",IF(ISERR(G22*H22),"",IF(G22*H22=0,"",ROUND(G22*H22,2)))) -> 
A23: 8.2.3 | B23: 216.03 | C23: Jacking of pipes:
C25: .01 | D25: 1 371 mm dia (OD), 100D concrete sleeve
D26: pipe (in-the-wall joint), according to SANS 677 | F26: m | G26: 77
A28: 8.2.4 | B28: 216.04 | C28: Excavation for jacking:
C30: .01 | D30: Soft excavation | F30: m³ | G30: 69
C32: .02 | D32: Intermediate excavation | F32: m³ | G32: 34
C34: .03 | D34: Hard rock excavation | F34: m³ | G34: 11
A36: 8.2.5 | B36: 216.05 | C36: Extra over items 216.01 and 216.04 for | I36: =IF(OR(AND(G36="Prov",H36="Sum"),(H36="PC Sum")),". . . . . . . . .00",IF(ISERR(G36*H36),"",IF(G36*H36=0,"",ROUND(G36*H36,2)))) -> 
C37: unforeseen rock or boulders | F37: Prov sum | G37: 1 | H37: 20,000.00 | I37: 20,000.00
A39: 8.2.9 | B39: 216.06 | C39: Stabilization of unstable areas or
C40: grouting of voids where ordered:
C42: .01 | D42: Provision and establishment of equipment on
D43: site, and removal on completion of operation | F43: sum | G43: 1
C45: .02 | D45: Operation of equipment | F45: day | G45: 2 | I45: =IF(OR(AND(G45="Prov",H45="Sum"),(H45="PC Sum")),". . . . . . . . .00",IF(ISERR(G45*H45),"",IF(G45*H45=0,"",ROUND(G45*H45,2)))) -> 
C47: .03 | D47: Materials used | F47: m³ | G47: 53
A49: 8.2.10 | B49: 216.07 | C49: Standing time for pipe jacking gang and the
C50: jacking equipment covered by item 216.01 | F50: h | G50: 40
C52: ROAD CROSSING:2
I53: =IF(OR(AND(G53="Prov",H53="Sum"),(H53="PC Sum")),". . . . . . . . .00",IF(ISERR(G53*H53),"",IF(G53*H53=0,"",ROUND(G53*H53,2)))) -> 
A54: 8.2.1 | B54: 216.11 | C54: Jacking establishment:
C56: .01 | D56: Fixed charges | F56: sum | G56: 1
C58: .02 | D58: Time-related charges | F58: sum | G58: 1
A60: 8.2.2 | B60: 216.12 | C60: Supply of pipes to be jacked:
C62: .01 | D62: 1 371 mm dia (OD), 100D concrete sleeve
D63: pipe (in-the-wall joint), according to SANS 677 | F63: m | G63: 46
A65: 8.2.3 | B65: 216.13 | C65: Jacking of pipes: | I65: =IF(OR(AND(G65="Prov",H65="Sum"),(H65="PC Sum")),". . . . . . . . .00",IF(ISERR(G65*H65),"",IF(G65*H65=0,"",ROUND(G65*H65,2)))) -> 
C67: .01 | D67: 1 371 mm dia (OD), 100D concrete sleeve
D68: pipe (in-the-wall joint), according to SANS 677 | F68: m | G68: 46
A70: 8.2.4 | B70: 216.14 | C70: Excavation for jacking: | I70: =IF(OR(AND(G70="Prov",H70="Sum"),(H70="PC Sum")),". . . . . . . . .00",IF(ISERR(G70*H70),"",IF(G70*H70=0,"",ROUND(G70*H70,2)))) -> 
C72: .01 | D72: Soft excavation | F72: m³ | G72: 42
C74: .02 | D74: Intermediate excavation | F74: m³ | G74: 20
C76: .03 | D76: Hard rock excavation | F76: m³ | G76: 7
A78: 1200 LG | B78: Carried forward
I82: SECTION 1200 LG
A83: PAYMENT
A84: REFERS | B84: ITEM | E84: DESCRIPTION | F84: UNIT | G84: QUAN- | H84: RATE | I84: AMOUNT
A85: TO | B85: NO | G85: TITY
C87: Brought forward
A90: 8.2.5 | B90: 216.15 | C90: Extra over items 216.11 and 216.14 for | I90: =IF(OR(AND(G90="Prov",H90="Sum"),(H90="PC Sum")),". . . . . . . . .00",IF(ISERR(G90*H90),"",IF(G90*H90=0,"",ROUND(G90*H90,2)))) -> 
C91: unforeseen rock or boulders | F91: Prov sum | G91: 1 | H91: 20,000.00 | I91: 20,000.00
A93: 8.2.9 | B93: 216.16 | C93: Stabilization of unstable areas or | I93: =IF(OR(AND(G93="Prov",H93="Sum"),(H93="PC Sum")),". . . . . . . . .00",IF(ISERR(G93*H93),"",IF(G93*H93=0,"",ROUND(G93*H93,2)))) -> 
C94: grouting of voids where ordered:
C96: .01 | D96: Provision and establishment of equipment on
D97: site, and removal on completion of operation | F97: sum | G97: 1
C99: .02 | D99: Operation of equipment | F99: day | G99: 2 | I99: =IF(OR(AND(G99="Prov",H99="Sum"),(H99="PC Sum")),". . . . . . . . .00",IF(ISERR(G99*H99),"",IF(G99*H99=0,"",ROUND(G99*H99,2)))) -> 
C101: .03 | D101: Materials used | F101: m³ | G101: 32
A103: 8.2.10 | B103: 216.17 | C103: Standing time for pipe jacking gang and the
C104: jacking equipment covered by item 216.11 | F104: h | G104: 40
C106: ROAD CROSSING:3
I107: =IF(OR(AND(G107="Prov",H107="Sum"),(H107="PC Sum")),". . . . . . . . .00",IF(ISERR(G107*H107),"",IF(G107*H107=0,"",ROUND(G107*H107,2)))) -> 
A108: 8.2.1 | B108: 216.21 | C108: Jacking establishment:
C110: .01 | D110: Fixed charges | F110: sum | G110: 1
C112: .02 | D112: Time-related charges | F112: sum | G112: 1
A114: 8.2.2 | B114: 216.22 | C114: Supply of pipes to be jacked:
C116: .01 | D116: 1 371 mm dia (OD), 100D concrete sleeve
D117: pipe (in-the-wall joint), according to SANS 677 | F117: m | G117: 62
A119: 8.2.3 | B119: 216.23 | C119: Jacking of pipes: | I119: =IF(OR(AND(G119="Prov",H119="Sum"),(H119="PC Sum")),". . . . . . . . .00",IF(ISERR(G119*H119),"",IF(G119*H119=0,"",ROUND(G119*H119,2)))) -> 
C121: .01 | D121: 1 371 mm dia (OD), 100D concrete sleeve
D122: pipe (in-the-wall joint), according to SANS 677 | F122: m | G122: 62
A124: 8.2.4 | B124: 216.24 | C124: Excavation for jacking: | I124: =IF(OR(AND(G124="Prov",H124="Sum"),(H124="PC Sum")),". . . . . . . . .00",IF(ISERR(G124*H124),"",IF(G124*H124=0,"",ROUND(G124*H124,2)))) -> 
C126: .01 | D126: Soft excavation | F126: m³ | G126: 56
C128: .02 | D128: Intermediate excavation | F128: m³ | G128: 28
C130: .03 | D130: Hard rock excavation | F130: m³ | G130: 9
A132: 8.2.5 | B132: 216.25 | C132: Extra over items 216.21 and 216.24 for | I132: =IF(OR(AND(G132="Prov",H132="Sum"),(H132="PC Sum")),". . . . . . . . .00",IF(ISERR(G132*H132),"",IF(G132*H132=0,"",ROUND(G132*H132,2)))) -> 
C133: unforeseen rock or boulders | F133: Prov sum | G133: 1 | H133: 20,000.00 | I133: 20,000.00
I134: =IF(OR(AND(G134="Prov",H134="Sum"),(H134="PC Sum")),". . . . . . . . .00",IF(ISERR(G134*H134),"",IF(G134*H134=0,"",ROUND(G134*H134,2)))) -> 
A135: 8.2.9 | B135: 216.26 | C135: Stabilization of unstable areas or
C136: grouting of voids where ordered:
C138: .01 | D138: Provision and establishment of equipment on | I138: =IF(OR(AND(G138="Prov",H138="Sum"),(H138="PC Sum")),". . . . . . . . .00",IF(ISERR(G138*H138),"",IF(G138*H138=0,"",ROUND(G138*H138,2)))) -> 
D139: site, and removal on completion of operation | F139: sum | G139: 1
C141: .02 | D141: Operation of equipment | F141: day | G141: 2 | I141: =IF(OR(AND(G141="Prov",H141="Sum"),(H141="PC Sum")),". . . . . . . . .00",IF(ISERR(G141*H141),"",IF(G141*H141=0,"",ROUND(G141*H141,2)))) -> 
C143: .03 | D143: Materials used | F143: m³ | G143: 43
A145: 8.2.10 | B145: 216.27 | C145: Standing time for pipe jacking gang
C146: and the jacking equipment covered
C147: by item 216.21 | F147: h | G147: 40
C149: ROAD CROSSING:4
I150: =IF(OR(AND(G150="Prov",H150="Sum"),(H150="PC Sum")),". . . . . . . . .00",IF(ISERR(G150*H150),"",IF(G150*H150=0,"",ROUND(G150*H150,2)))) -> 
A151: 8.2.1 | B151: 216.31 | C151: Jacking establishment:
C153: .01 | D153: Fixed charges | F153: sum | G153: 1
C155: .02 | D155: Time-related charges | F155: sum | G155: 1
A158: 1200 LG | B158: Carried forward
I162: SECTION 1200 LG
A163: PAYMENT
A164: REFERS | B164: ITEM | E164: DESCRIPTION | F164: UNIT | G164: QUAN- | H164: RATE | I164: AMOUNT
A165: TO | B165: NO | G165: TITY
C167: Brought forward
I169: =IF(OR(AND(G169="Prov",H169="Sum"),(H169="PC Sum")),". . . . . . . . .00",IF(ISERR(G169*H169),"",IF(G169*H169=0,"",ROUND(G169*H169,2)))) -> 
A170: 8.2.2 | B170: 216.32 | C170: Supply of pipes to be jacked:
C172: .01 | D172: 1 371 mm dia (OD), 100D concrete sleeve
D173: pipe (in-the-wall joint), according to
D174: SANS 677 | F174: m | G174: 49
A176: 8.2.3 | B176: 216.33 | C176: Jacking of pipes: | I176: =IF(OR(AND(G176="Prov",H176="Sum"),(H176="PC Sum")),". . . . . . . . .00",IF(ISERR(G176*H176),"",IF(G176*H176=0,"",ROUND(G176*H176,2)))) -> 
C178: .01 | D178: 1 371 mm dia (OD), 100D concrete sleeve
D179: pipe (in-the-wall joint), according to
D180: SANS 677 | F180: m | G180: 49
A182: 8.2.4 | B182: 216.34 | C182: Excavation for jacking: | I182: =IF(OR(AND(G182="Prov",H182="Sum"),(H182="PC Sum")),". . . . . . . . .00",IF(ISERR(G182*H182),"",IF(G182*H182=0,"",ROUND(G182*H182,2)))) -> 
C184: .01 | D184: Soft excavation | F184: m³ | G184: 45
C186: .02 | D186: Intermediate excavation | F186: m³ | G186: 22
C188: .03 | D188: Hard rock excavation | F188: m³ | G188: 7
A190: 8.2.5 | B190: 216.35 | C190: Extra over items 216.31 and 216.34 for | I190: =IF(OR(AND(G190="Prov",H190="Sum"),(H190="PC Sum")),". . . . . . . . .00",IF(ISERR(G190*H190),"",IF(G190*H190=0,"",ROUND(G190*H190,2)))) -> 
C191: unforeseen rock or boulders | F191: Prov sum | G191: 1 | H191: 20,000.00 | I191: 20,000.00
I192: =IF(OR(AND(G192="Prov",H192="Sum"),(H192="PC Sum")),". . . . . . . . .00",IF(ISERR(G192*H192),"",IF(G192*H192=0,"",ROUND(G192*H192,2)))) -> 
A193: 8.2.9 | B193: 216.36 | C193: Stabilization of unstable areas or
C194: grouting of voids where ordered:
C196: .01 | D196: Provision and establishment of | I196: =IF(OR(AND(G196="Prov",H196="Sum"),(H196="PC Sum")),". . . . . . . . .00",IF(ISERR(G196*H196),"",IF(G196*H196=0,"",ROUND(G196*H196,2)))) -> 
D197: equipment on site, and removal on
D198: completion of operation | F198: sum | G198: 1
C200: .02 | D200: Operation of equipment | F200: day | G200: 2 | I200: =IF(OR(AND(G200="Prov",H200="Sum"),(H200="PC Sum")),". . . . . . . . .00",IF(ISERR(G200*H200),"",IF(G200*H200=0,"",ROUND(G200*H200,2)))) -> 
C202: .03 | D202: Materials used | F202: m³ | G202: 34
A204: 8.2.10 | B204: 216.37 | C204: Standing time for pipe jacking gang
C205: and the jacking equipment covered
C206: by item 216.31 | F206: h | G206: 40
C208: ROAD CROSSING:5
I209: =IF(OR(AND(G209="Prov",H209="Sum"),(H209="PC Sum")),". . . . . . . . .00",IF(ISERR(G209*H209),"",IF(G209*H209=0,"",ROUND(G209*H209,2)))) -> 
A210: 8.2.1 | B210: 216.41 | C210: Jacking establishment:
C212: .01 | D212: Fixed charges | F212: sum | G212: 1
C214: .02 | D214: Time-related charges | F214: sum | G214: 1
A216: 8.2.2 | B216: 216.42 | C216: Supply of pipes to be jacked:
C218: .01 | D218: 1 371 mm dia (OD), 100D concrete sleeve
D219: pipe (in-the-wall joint), according to
D220: SANS 677 | F220: m | G220: 52
A222: 8.2.3 | B222: 216.43 | C222: Jacking of pipes:
C224: .01 | D224: 1 371 mm dia (OD), 100D concrete sleeve
D225: pipe (in-the-wall joint), according to
D226: SANS 677 | F226: m | G226: 52
A228: 8.2.4 | B228: 216.44 | C228: Excavation for jacking: | I228: =IF(OR(AND(G228="Prov",H228="Sum"),(H228="PC Sum")),". . . . . . . . .00",IF(ISERR(G228*H228),"",IF(G228*H228=0,"",ROUND(G228*H228,2)))) -> 
C230: .01 | D230: Soft excavation | F230: m³ | G230: 47
C232: .02 | D232: Intermediate excavation | F232: m³ | G232: 23
C234: .03 | D234: Hard rock excavation | F234: m³ | G234: 8
A238: 1200 LG | B238: Carried forward
I242: SECTION 1200 LG
A243: PAYMENT
A244: REFERS | B244: ITEM | E244: DESCRIPTION | F244: UNIT | G244: QUAN- | H244: RATE | I244: AMOUNT
A245: TO | B245: NO | G245: TITY
C247: Brought forward
A250: 8.2.5 | B250: 216.45 | C250: Extra over items 216.41 and 216.44 for | I250: =IF(OR(AND(G250="Prov",H250="Sum"),(H250="PC Sum")),". . . . . . . . .00",IF(ISERR(G250*H250),"",IF(G250*H250=0,"",ROUND(G250*H250,2)))) -> 
C251: unforeseen rock or boulders | F251: Prov sum | G251: 1 | H251: 20,000.00 | I251: 20,000.00
A253: 8.2.9 | B253: 216.46 | C253: Stabilization of unstable areas or | I253: =IF(OR(AND(G253="Prov",H253="Sum"),(H253="PC Sum")),". . . . . . . . .00",IF(ISERR(G253*H253),"",IF(G253*H253=0,"",ROUND(G253*H253,2)))) -> 
C254: grouting of voids where ordered:
C256: .01 | D256: Provision and establishment of equipment on | I256: =IF(OR(AND(G256="Prov",H256="Sum"),(H256="PC Sum")),". . . . . . . . .00",IF(ISERR(G256*H256),"",IF(G256*H256=0,"",ROUND(G256*H256,2)))) -> 
D257: site, and removal on completion of operation | F257: sum | G257: 1
C259: .02 | D259: Operation of equipment | F259: day | G259: 2 | I259: =IF(OR(AND(G259="Prov",H259="Sum"),(H259="PC Sum")),". . . . . . . . .00",IF(ISERR(G259*H259),"",IF(G259*H259=0,"",ROUND(G259*H259,2)))) -> 
C261: .03 | D261: Materials used | F261: m³ | G261: 36
A263: 8.2.10 | B263: 216.47 | C263: Standing time for pipe jacking gang and the
C264: jacking equipment covered by item 216.41 | F264: h | G264: 40
C266: ROAD CROSSING:6
B268: 216.51 | C268: Jacking establishment:
C270: .01 | D270: Fixed charges | F270: sum | G270: 1 | I270: =IF(OR(AND(G270="Prov",H270="Sum"),(H270="PC Sum")),". . . . . . . . .00",IF(ISERR(G270*H270),"",IF(G270*H270=0,"",ROUND(G270*H270,2)))) -> 
C272: .02 | D272: Time-related charges | F272: sum | G272: 1 | I272: =IF(OR(AND(G272="Prov",H272="Sum"),(H272="PC Sum")),". . . . . . . . .00",IF(ISERR(G272*H272),"",IF(G272*H272=0,"",ROUND(G272*H272,2)))) -> 
A274: 8.2.2 | B274: 216.52 | C274: Supply of pipes to be jacked:
C276: .01 | D276: 1 371 mm dia (OD), 100D concrete sleeve
D277: pipe (in-the-wall joint), according to SANS 677 | F277: m | G277: 65
A279: 8.2.3 | B279: 216.53 | C279: Jacking of pipes: | I279: =IF(OR(AND(G279="Prov",H279="Sum"),(H279="PC Sum")),". . . . . . . . .00",IF(ISERR(G279*H279),"",IF(G279*H279=0,"",ROUND(G279*H279,2)))) -> 
C281: .01 | D281: 1 371 mm dia (OD), 100D concrete sleeve
D282: pipe (in-the-wall joint), according to SANS 677 | F282: m | G282: 65
A284: 8.2.4 | B284: 216.54 | C284: Excavation for jacking:
C286: .01 | D286: Soft excavation | F286: m³ | G286: 60
C288: .02 | D288: Intermediate excavation | F288: m³ | G288: 30
C290: .03 | D290: Hard rock excavation | F290: m³ | G290: 10
A292: 8.2.5 | B292: 216.55 | C292: Extra over items 216.51 and 216.54 for | I292: =IF(OR(AND(G292="Prov",H292="Sum"),(H292="PC Sum")),". . . . . . . . .00",IF(ISERR(G292*H292),"",IF(G292*H292=0,"",ROUND(G292*H292,2)))) -> 
C293: unforeseen rock or boulders | F293: Prov sum | G293: 1 | H293: 20,000.00 | I293: 20,000.00
I294: =IF(OR(AND(G294="Prov",H294="Sum"),(H294="PC Sum")),". . . . . . . . .00",IF(ISERR(G294*H294),"",IF(G294*H294=0,"",ROUND(G294*H294,2)))) -> 
A295: 8.2.9 | B295: 216.56 | C295: Stabilization of unstable areas or
C296: grouting of voids where ordered:
C298: .01 | D298: Provision and establishment of equipment on
D299: site, and removal on completion of operation | F299: sum | G299: 1
C301: .02 | D301: Operation of equipment | F301: day | G301: 10
C303: .03 | D303: Materials used | F303: m³ | G303: 38
A305: 8.2.10 | B305: 216.57 | C305: Standing time for pipe jacking gang and the
C306: jacking equipment covered by item 216.51 | F306: h | G306: 40
C308: ROAD CROSSING:8
A310: 8.2.1 | B310: 216.61 | C310: Jacking establishment:
C312: .01 | D312: Fixed charges | F312: sum | G312: 1 | I312: =IF(OR(AND(G312="Prov",H312="Sum"),(H312="PC Sum")),". . . . . . . . .00",IF(ISERR(G312*H312),"",IF(G312*H312=0,"",ROUND(G312*H312,2)))) -> 
C314: .02 | D314: Time-related charges | F314: sum | G314: 1 | I314: =IF(OR(AND(G314="Prov",H314="Sum"),(H314="PC Sum")),". . . . . . . . .00",IF(ISERR(G314*H314),"",IF(G314*H314=0,"",ROUND(G314*H314,2)))) -> 
A318: 1200 LG | B318: Carried forward
I322: SECTION 1200 LG
A323: PAYMENT
A324: REFERS | B324: ITEM | E324: DESCRIPTION | F324: UNIT | G324: QUAN- | H324: RATE | I324: AMOUNT
A325: TO | B325: NO | G325: TITY
C327: Brought forward
I329: =IF(OR(AND(G329="Prov",H329="Sum"),(H329="PC Sum")),". . . . . . . . .00",IF(ISERR(G329*H329),"",IF(G329*H329=0,"",ROUND(G329*H329,2)))) -> 
A330: 8.2.2 | B330: 216.62 | C330: Supply of pipes to be jacked:
C332: .01 | D332: 1 371 mm dia (OD), 100D concrete sleeve
D333: pipe (in-the-wall joint), according to
D334: SANS 677 | F334: m | G334: 61 | I334: =IF(OR(AND(G334="Prov",H334="Sum"),(H334="PC Sum")),". . . . . . . . .00",IF(ISERR(G334*H334),"",IF(G334*H334=0,"",ROUND(G334*H334,2)))) -> 
... 192 more rows

Sheet 1200ME
I2: SECTION 1200 ME
A4: PAYMENT
A5: REFERS | B5: ITEM | E5: DESCRIPTION | F5: UNIT | G5: QUAN- | H5: RATE | I5: AMOUNT
A6: TO | B6: NO | G6: TITY
I7: =IF(OR(AND(G7="Prov",H7="Sum"),(H7="PC Sum")),". . . . . . . . .00",IF(ISERR(G7*H7),"",IF(G7*H7=0,"",ROUND(G7*H7,2)))) -> 
A8: SABS | B8: 223.00 | C8: SUBBASE
A9: 1200 ME
A11: PSDM 8.3.3 | B11: 223.01 | C11: Treatment of roadbed
C13: Roadbed preparation and compaction of
C14: material to (Rip and compact in-situ) :
A16: PSME 8.3.3 | B16: 223.02 | C16: .01 | D16: Minimum of 90% of modified AASHTO
D17: maximum density | F17: m³ | G17: 20
A20: PSME | B20: 223.03 | C20: Construct the subbase course with
A21: 8.3.3 | C21: material from commercial sources
C23: .01 | D23: G5 material compacted to 97%
D24: modified AASHTO | F24: m³ | G24: 20
B80: TOTAL SECTION 1200 ME CARRIED TO SUMMARY

Sheet 1200MF
I2: SECTION 1200 MF
A4: PAYMENT
A5: REFERS | B5: ITEM | E5: DESCRIPTION | F5: UNIT | G5: QUAN- | H5: RATE | I5: AMOUNT
A6: TO | B6: NO | G6: TITY
I7: =IF(OR(AND(G7="Prov",H7="Sum"),(H7="PC Sum")),". . . . . . . . .00",IF(ISERR(G7*H7),"",IF(G7*H7=0,"",ROUND(G7*H7,2)))) -> 
A8: SANS | B8: 224.00 | C8: BASE
A9: 1200 MF
A11: 8.3.3 | B11: 224.01 | C11: Construct base with material from
C12: commercial sources or designated
C13: borrow areas:
C15: .01 | D15: Graded crushed stone | F15: m³ | G15: 14
I36: =IF(OR(AND(G36="Prov",H36="Sum"),(H36="PC Sum")),". . . . . . . . .00",IF(ISERR(G36*H36),"",IF(G36*H36=0,"",ROUND(G36*H36,2)))) -> 
B82: TOTAL SECTION 1200 MF CARRIED TO SUMMARY

Sheet PART PC
I2: PARTICULAR SPECIFICATION PC
A4: PAYMENT
A5: REFERS | B5: ITEM | E5: DESCRIPTION | F5: UNIT | G5: QUAN- | H5: RATE | I5: AMOUNT
A6: TO | B6: NO | G6: TITY
I7: =IF(OR(AND(G7="Prov",H7="Sum"),(H7="PC Sum")),". . . . . . . . .00",IF(ISERR(G7*H7),"",IF(G7*H7=0,"",ROUND(G7*H7,2)))) -> 
A8: PART PC | B8: PC 10 | C8: DIRECTIONAL DRILLING | I8: =IF(OR(AND(G8="Prov",H8="Sum"),(H8="PC Sum")),". . . . . . . . .00",IF(ISERR(G8*H8),"",IF(G8*H8=0,"",ROUND(G8*H8,2)))) -> 
I9: =IF(OR(AND(G9="Prov",H9="Sum"),(H9="PC Sum")),". . . . . . . . .00",IF(ISERR(G9*H9),"",IF(G9*H9=0,"",ROUND(G9*H9,2)))) -> 
C10: DRILLING: ROAD CROSSING 2
B12: PC.11 | C12: Design and site establishment | F12: sum | G12: 1 | I12: =IF(OR(AND(G12="Prov",H12="Sum"),(H12="PC Sum")),". . . . . . . . .00",IF(ISERR(G12*H12),"",IF(G12*H12=0,"",ROUND(G12*H12,2)))) -> 
B14: PC.12 | C14: Temporary works for directional drilling | F14: sum | G14: 1 | I14: =IF(OR(AND(G14="Prov",H14="Sum"),(H14="PC Sum")),". . . . . . . . .00",IF(ISERR(G14*H14),"",IF(G14*H14=0,"",ROUND(G14*H14,2)))) -> 
I15: =IF(OR(AND(G15="Prov",H15="Sum"),(H15="PC Sum")),". . . . . . . . .00",IF(ISERR(G15*H15),"",IF(G15*H15=0,"",ROUND(G15*H15,2)))) -> 
B16: PC.13 | C16: Directional drilling and installation of
C17: pipe or cable sleeve: | I17: =IF(OR(AND(G17="Prov",H17="Sum"),(H17="PC Sum")),". . . . . . . . .00",IF(ISERR(G17*H17),"",IF(G17*H17=0,"",ROUND(G17*H17,2)))) -> 
C19: .01 | D19: 630 mm dia hdpe pipe | F19: m | G19: 46 | I19: =IF(OR(AND(G19="Prov",H19="Sum"),(H19="PC Sum")),". . . . . . . . .00",IF(ISERR(G19*H19),"",IF(G19*H19=0,"",ROUND(G19*H19,2)))) -> 
B21: PC.14 | C21: Extra over items PC 12 and PC 13 for
C22: unforeseen rock or boulders | F22: m³ | G22: 14
I23: =IF(OR(AND(G23="Prov",H23="Sum"),(H23="PC Sum")),". . . . . . . . .00",IF(ISERR(G23*H23),"",IF(G23*H23=0,"",ROUND(G23*H23,2)))) -> 
B24: PC.16 | C24: De-establish quipment on site | F24: sum | G24: 1 | I24: =IF(OR(AND(G24="Prov",H24="Sum"),(H24="PC Sum")),". . . . . . . . .00",IF(ISERR(G24*H24),"",IF(G24*H24=0,"",ROUND(G24*H24,2)))) -> 
I25: =IF(OR(AND(G25="Prov",H25="Sum"),(H25="PC Sum")),". . . . . . . . .00",IF(ISERR(G25*H25),"",IF(G25*H25=0,"",ROUND(G25*H25,2)))) -> 
B26: PC.17 | C26: Standing time for directional drilling | I26: =IF(OR(AND(G26="Prov",H26="Sum"),(H26="PC Sum")),". . . . . . . . .00",IF(ISERR(G26*H26),"",IF(G26*H26=0,"",ROUND(G26*H26,2)))) -> 
C27: team and equipment | F27: h | G27: 40
B29: PC.18 | C29: Stabilization of unstable areas or
C30: grouting of voids where ordered:
C32: .01 | D32: Provision and establishment of equipment on
D33: Site, and removal on completion of operation | F33: sum | G33: 1
I34: =IF(OR(AND(G34="Prov",H34="Sum"),(H34="PC Sum")),". . . . . . . . .00",IF(ISERR(G34*H34),"",IF(G34*H34=0,"",ROUND(G34*H34,2)))) -> 
C35: .02 | D35: Operation of equipment | F35: day | G35: 10 | I35: =IF(OR(AND(G35="Prov",H35="Sum"),(H35="PC Sum")),". . . . . . . . .00",IF(ISERR(G35*H35),"",IF(G35*H35=0,"",ROUND(G35*H35,2)))) -> 
I36: =IF(OR(AND(G36="Prov",H36="Sum"),(H36="PC Sum")),". . . . . . . . .00",IF(ISERR(G36*H36),"",IF(G36*H36=0,"",ROUND(G36*H36,2)))) -> 
C37: .03 | D37: Materials used | F37: m³ | G37: 10 | I37: =IF(OR(AND(G37="Prov",H37="Sum"),(H37="PC Sum")),". . . . . . . . .00",IF(ISERR(G37*H37),"",IF(G37*H37=0,"",ROUND(G37*H37,2)))) -> 
B39: PC 20 | C39: DIRECTIONAL DRILLING | I39: =IF(OR(AND(G39="Prov",H39="Sum"),(H39="PC Sum")),". . . . . . . . .00",IF(ISERR(G39*H39),"",IF(G39*H39=0,"",ROUND(G39*H39,2)))) -> 
C41: DRILLING: ROAD CROSSING 3
B43: PC.21 | C43: Design and site establishment | F43: sum | G43: 1 | I43: =IF(OR(AND(G43="Prov",H43="Sum"),(H43="PC Sum")),". . . . . . . . .00",IF(ISERR(G43*H43),"",IF(G43*H43=0,"",ROUND(G43*H43,2)))) -> 
B45: PC.22 | C45: Temporary works for directional drilling | F45: sum | G45: 1 | I45: =IF(OR(AND(G45="Prov",H45="Sum"),(H45="PC Sum")),". . . . . . . . .00",IF(ISERR(G45*H45),"",IF(G45*H45=0,"",ROUND(G45*H45,2)))) -> 
I46: =IF(OR(AND(G46="Prov",H46="Sum"),(H46="PC Sum")),". . . . . . . . .00",IF(ISERR(G46*H46),"",IF(G46*H46=0,"",ROUND(G46*H46,2)))) -> 
B47: PC.23 | C47: Directional drilling and installation of | I47: =IF(OR(AND(G47="Prov",H47="Sum"),(H47="PC Sum")),". . . . . . . . .00",IF(ISERR(G47*H47),"",IF(G47*H47=0,"",ROUND(G47*H47,2)))) -> 
C48: pipe or cable sleeve:
I49: =IF(OR(AND(G49="Prov",H49="Sum"),(H49="PC Sum")),". . . . . . . . .00",IF(ISERR(G49*H49),"",IF(G49*H49=0,"",ROUND(G49*H49,2)))) -> 
C50: .01 | D50: 630 mm dia hdpe pipe | F50: m | G50: 62 | I50: =IF(OR(AND(G50="Prov",H50="Sum"),(H50="PC Sum")),". . . . . . . . .00",IF(ISERR(G50*H50),"",IF(G50*H50=0,"",ROUND(G50*H50,2)))) -> 
B52: PC.24 | C52: Extra over items PC 22 and PC 23 for
C53: unforeseen rock or boulders | F53: m³ | G53: 19 | I53: =IF(OR(AND(G53="Prov",H53="Sum"),(H53="PC Sum")),". . . . . . . . .00",IF(ISERR(G53*H53),"",IF(G53*H53=0,"",ROUND(G53*H53,2)))) -> 
I54: =IF(OR(AND(G54="Prov",H54="Sum"),(H54="PC Sum")),". . . . . . . . .00",IF(ISERR(G54*H54),"",IF(G54*H54=0,"",ROUND(G54*H54,2)))) -> 
B55: PC.26 | C55: De-establish quipment on site | F55: sum | G55: 1 | I55: =IF(OR(AND(G55="Prov",H55="Sum"),(H55="PC Sum")),". . . . . . . . .00",IF(ISERR(G55*H55),"",IF(G55*H55=0,"",ROUND(G55*H55,2)))) -> 
I56: =IF(OR(AND(G56="Prov",H56="Sum"),(H56="PC Sum")),". . . . . . . . .00",IF(ISERR(G56*H56),"",IF(G56*H56=0,"",ROUND(G56*H56,2)))) -> 
B57: PC.27 | C57: Standing time for directional drilling
C58: team and equipment | F58: h | G58: 40
B60: PC.28 | C60: Stabilization of unstable areas or
C61: grouting of voids where ordered:
C63: .01 | D63: Provision and establishment of equipment on
D64: Site, and removal on completion of operation | F64: sum | G64: 1
C66: .02 | D66: Operation of equipment | F66: day | G66: 10
C68: .03 | D68: Materials used | F68: m³ | G68: 10
A76: PART PC | B76: Carried forward
I79: PARTICULAR SPECIFICATION PC
A81: PAYMENT
A82: REFERS | B82: ITEM | E82: DESCRIPTION | F82: UNIT | G82: QUAN- | H82: RATE | I82: AMOUNT
A83: TO | B83: NO | G83: TITY
C85: Brought forward
B88: PC 30 | C88: DIRECTIONAL DRILLING | I88: =IF(OR(AND(G88="Prov",H88="Sum"),(H88="PC Sum")),". . . . . . . . .00",IF(ISERR(G88*H88),"",IF(G88*H88=0,"",ROUND(G88*H88,2)))) -> 
I89: =IF(OR(AND(G89="Prov",H89="Sum"),(H89="PC Sum")),". . . . . . . . .00",IF(ISERR(G89*H89),"",IF(G89*H89=0,"",ROUND(G89*H89,2)))) -> 
C90: DRILLING: ROAD CROSSING 4
B92: PC.31 | C92: Design and site establishment | F92: sum | G92: 1 | I92: =IF(OR(AND(G92="Prov",H92="Sum"),(H92="PC Sum")),". . . . . . . . .00",IF(ISERR(G92*H92),"",IF(G92*H92=0,"",ROUND(G92*H92,2)))) -> 
B94: PC.32 | C94: Temporary works for directional drilling | F94: sum | G94: 1 | I94: =IF(OR(AND(G94="Prov",H94="Sum"),(H94="PC Sum")),". . . . . . . . .00",IF(ISERR(G94*H94),"",IF(G94*H94=0,"",ROUND(G94*H94,2)))) -> 
B96: PC.33 | C96: Directional drilling and installation of
C97: pipe or cable sleeve: | I97: =IF(OR(AND(G97="Prov",H97="Sum"),(H97="PC Sum")),". . . . . . . . .00",IF(ISERR(G97*H97),"",IF(G97*H97=0,"",ROUND(G97*H97,2)))) -> 
C99: .01 | D99: 630 mm dia hdpe pipe | F99: m | G99: 49 | I99: =IF(OR(AND(G99="Prov",H99="Sum"),(H99="PC Sum")),". . . . . . . . .00",IF(ISERR(G99*H99),"",IF(G99*H99=0,"",ROUND(G99*H99,2)))) -> 
B101: PC.34 | C101: Extra over items PC 32 and PC 33 for
C102: unforeseen rock or boulders | F102: m³ | G102: 15 | I102: =IF(OR(AND(G102="Prov",H102="Sum"),(H102="PC Sum")),". . . . . . . . .00",IF(ISERR(G102*H102),"",IF(G102*H102=0,"",ROUND(G102*H102,2)))) -> 
I103: =IF(OR(AND(G103="Prov",H103="Sum"),(H103="PC Sum")),". . . . . . . . .00",IF(ISERR(G103*H103),"",IF(G103*H103=0,"",ROUND(G103*H103,2)))) -> 
B104: PC.36 | C104: De-establish quipment on site | F104: sum | G104: 1 | I104: =IF(OR(AND(G104="Prov",H104="Sum"),(H104="PC Sum")),". . . . . . . . .00",IF(ISERR(G104*H104),"",IF(G104*H104=0,"",ROUND(G104*H104,2)))) -> 
I105: =IF(OR(AND(G105="Prov",H105="Sum"),(H105="PC Sum")),". . . . . . . . .00",IF(ISERR(G105*H105),"",IF(G105*H105=0,"",ROUND(G105*H105,2)))) -> 
B106: PC.37 | C106: Standing time for directional drilling | I106: =IF(OR(AND(G106="Prov",H106="Sum"),(H106="PC Sum")),". . . . . . . . .00",IF(ISERR(G106*H106),"",IF(G106*H106=0,"",ROUND(G106*H106,2)))) -> 
C107: team and equipment | F107: h | G107: 40
B109: PC.38 | C109: Stabilization of unstable areas or
C110: grouting of voids where ordered:
C112: .01 | D112: Provision and establishment of equipment on
D113: Site, and removal on completion of operation | F113: sum | G113: 1
I114: =IF(OR(AND(G114="Prov",H114="Sum"),(H114="PC Sum")),". . . . . . . . .00",IF(ISERR(G114*H114),"",IF(G114*H114=0,"",ROUND(G114*H114,2)))) -> 
C115: .02 | D115: Operation of equipment | F115: day | G115: 10 | I115: =IF(OR(AND(G115="Prov",H115="Sum"),(H115="PC Sum")),". . . . . . . . .00",IF(ISERR(G115*H115),"",IF(G115*H115=0,"",ROUND(G115*H115,2)))) -> 
I116: =IF(OR(AND(G116="Prov",H116="Sum"),(H116="PC Sum")),". . . . . . . . .00",IF(ISERR(G116*H116),"",IF(G116*H116=0,"",ROUND(G116*H116,2)))) -> 
C117: .03 | D117: Materials used | F117: m³ | G117: 10 | I117: =IF(OR(AND(G117="Prov",H117="Sum"),(H117="PC Sum")),". . . . . . . . .00",IF(ISERR(G117*H117),"",IF(G117*H117=0,"",ROUND(G117*H117,2)))) -> 
B119: PC 40 | C119: DIRECTIONAL DRILLING | I119: =IF(OR(AND(G119="Prov",H119="Sum"),(H119="PC Sum")),". . . . . . . . .00",IF(ISERR(G119*H119),"",IF(G119*H119=0,"",ROUND(G119*H119,2)))) -> 
C121: DRILLING: ROAD CROSSING 5
B123: PC.41 | C123: Design and site establishment | F123: sum | G123: 1 | I123: =IF(OR(AND(G123="Prov",H123="Sum"),(H123="PC Sum")),". . . . . . . . .00",IF(ISERR(G123*H123),"",IF(G123*H123=0,"",ROUND(G123*H123,2)))) -> 
B125: PC.42 | C125: Temporary works for directional drilling | F125: sum | G125: 1 | I125: =IF(OR(AND(G125="Prov",H125="Sum"),(H125="PC Sum")),". . . . . . . . .00",IF(ISERR(G125*H125),"",IF(G125*H125=0,"",ROUND(G125*H125,2)))) -> 
B127: PC.43 | C127: Directional drilling and installation of | I127: =IF(OR(AND(G127="Prov",H127="Sum"),(H127="PC Sum")),". . . . . . . . .00",IF(ISERR(G127*H127),"",IF(G127*H127=0,"",ROUND(G127*H127,2)))) -> 
C128: pipe or cable sleeve:
I129: =IF(OR(AND(G129="Prov",H129="Sum"),(H129="PC Sum")),". . . . . . . . .00",IF(ISERR(G129*H129),"",IF(G129*H129=0,"",ROUND(G129*H129,2)))) -> 
C130: .01 | D130: 630 mm dia hdpe pipe | F130: m | G130: 52 | I130: =IF(OR(AND(G130="Prov",H130="Sum"),(H130="PC Sum")),". . . . . . . . .00",IF(ISERR(G130*H130),"",IF(G130*H130=0,"",ROUND(G130*H130,2)))) -> 
B132: PC.44 | C132: Extra over items PC 42 and PC 43 for
C133: unforeseen rock or boulders | F133: m³ | G133: 16 | I133: =IF(OR(AND(G133="Prov",H133="Sum"),(H133="PC Sum")),". . . . . . . . .00",IF(ISERR(G133*H133),"",IF(G133*H133=0,"",ROUND(G133*H133,2)))) -> 
I134: =IF(OR(AND(G134="Prov",H134="Sum"),(H134="PC Sum")),". . . . . . . . .00",IF(ISERR(G134*H134),"",IF(G134*H134=0,"",ROUND(G134*H134,2)))) -> 
B135: PC.46 | C135: De-establish quipment on site | F135: sum | G135: 1 | I135: =IF(OR(AND(G135="Prov",H135="Sum"),(H135="PC Sum")),". . . . . . . . .00",IF(ISERR(G135*H135),"",IF(G135*H135=0,"",ROUND(G135*H135,2)))) -> 
B137: PC.47 | C137: Standing time for directional drilling
C138: team and equipment | F138: h | G138: 40
B140: PC.48 | C140: Stabilization of unstable areas or
C141: grouting of voids where ordered:
C143: .01 | D143: Provision and establishment of
D144: equipment on Site, and removal on
D145: completion of operation | F145: sum | G145: 1
C147: .02 | D147: Operation of equipment | F147: day | G147: 10
C149: .03 | D149: Materials used | F149: m³ | G149: 10
I150: =IF(OR(AND(G150="Prov",H150="Sum"),(H150="PC Sum")),". . . . . . . . .00",IF(ISERR(G150*H150),"",IF(G150*H150=0,"",ROUND(G150*H150,2)))) -> 
I151: =IF(OR(AND(G151="Prov",H151="Sum"),(H151="PC Sum")),". . . . . . . . .00",IF(ISERR(G151*H151),"",IF(G151*H151=0,"",ROUND(G151*H151,2)))) -> 
A153: PART PC | B153: Carried forward
I157: PARTICULAR SPECIFICATION PC
A158: PAYMENT
A159: REFERS | B159: ITEM | E159: DESCRIPTION | F159: UNIT | G159: QUAN- | H159: RATE | I159: AMOUNT
A160: TO | B160: NO | G160: TITY
C162: Brought forward
I164: =IF(OR(AND(G164="Prov",H164="Sum"),(H164="PC Sum")),". . . . . . . . .00",IF(ISERR(G164*H164),"",IF(G164*H164=0,"",ROUND(G164*H164,2)))) -> 
B165: PC 50 | C165: DIRECTIONAL DRILLING | I165: =IF(OR(AND(G165="Prov",H165="Sum"),(H165="PC Sum")),". . . . . . . . .00",IF(ISERR(G165*H165),"",IF(G165*H165=0,"",ROUND(G165*H165,2)))) -> 
I166: =IF(OR(AND(G166="Prov",H166="Sum"),(H166="PC Sum")),". . . . . . . . .00",IF(ISERR(G166*H166),"",IF(G166*H166=0,"",ROUND(G166*H166,2)))) -> 
C167: DRILLING: ROAD CROSSING 10
B169: PC.51 | C169: Design and site establishment | F169: sum | G169: 1 | I169: =IF(OR(AND(G169="Prov",H169="Sum"),(H169="PC Sum")),". . . . . . . . .00",IF(ISERR(G169*H169),"",IF(G169*H169=0,"",ROUND(G169*H169,2)))) -> 
B171: PC.52 | C171: Temporary works for directional drilling | F171: sum | G171: 1 | I171: =IF(OR(AND(G171="Prov",H171="Sum"),(H171="PC Sum")),". . . . . . . . .00",IF(ISERR(G171*H171),"",IF(G171*H171=0,"",ROUND(G171*H171,2)))) -> 
I172: =IF(OR(AND(G172="Prov",H172="Sum"),(H172="PC Sum")),". . . . . . . . .00",IF(ISERR(G172*H172),"",IF(G172*H172=0,"",ROUND(G172*H172,2)))) -> 
B173: PC.53 | C173: Directional drilling and installation of
C174: pipe or cable sleeve: | I174: =IF(OR(AND(G174="Prov",H174="Sum"),(H174="PC Sum")),". . . . . . . . .00",IF(ISERR(G174*H174),"",IF(G174*H174=0,"",ROUND(G174*H174,2)))) -> 
C176: .01 | D176: 710 mm dia hdpe pipe | F176: m | G176: 38 | I176: =IF(OR(AND(G176="Prov",H176="Sum"),(H176="PC Sum")),". . . . . . . . .00",IF(ISERR(G176*H176),"",IF(G176*H176=0,"",ROUND(G176*H176,2)))) -> 
B178: PC.54 | C178: Extra over items PC 52 and PC 53 for
C179: unforeseen rock or boulders | F179: m³ | G179: 15
I180: =IF(OR(AND(G180="Prov",H180="Sum"),(H180="PC Sum")),". . . . . . . . .00",IF(ISERR(G180*H180),"",IF(G180*H180=0,"",ROUND(G180*H180,2)))) -> 
B181: PC.56 | C181: De-establish quipment on site | F181: sum | G181: 1 | I181: =IF(OR(AND(G181="Prov",H181="Sum"),(H181="PC Sum")),". . . . . . . . .00",IF(ISERR(G181*H181),"",IF(G181*H181=0,"",ROUND(G181*H181,2)))) -> 
I182: =IF(OR(AND(G182="Prov",H182="Sum"),(H182="PC Sum")),". . . . . . . . .00",IF(ISERR(G182*H182),"",IF(G182*H182=0,"",ROUND(G182*H182,2)))) -> 
B183: PC.57 | C183: Standing time for directional drilling | I183: =IF(OR(AND(G183="Prov",H183="Sum"),(H183="PC Sum")),". . . . . . . . .00",IF(ISERR(G183*H183),"",IF(G183*H183=0,"",ROUND(G183*H183,2)))) -> 
C184: team and equipment | F184: h | G184: 40
B186: PC.58 | C186: Stabilization of unstable areas or
C187: grouting of voids where ordered:
C189: .01 | D189: Provision and establishment of
D190: equipment on Site, and removal on
D191: completion of operation | F191: sum | G191: 1 | I191: =IF(OR(AND(G191="Prov",H191="Sum"),(H191="PC Sum")),". . . . . . . . .00",IF(ISERR(G191*H191),"",IF(G191*H191=0,"",ROUND(G191*H191,2)))) -> 
B193: PC.58 | C193: .02 | D193: Operation of equipment | F193: day | G193: 10 | I193: =IF(OR(AND(G193="Prov",H193="Sum"),(H193="PC Sum")),". . . . . . . . .00",IF(ISERR(G193*H193),"",IF(G193*H193=0,"",ROUND(G193*H193,2)))) -> 
I194: =IF(OR(AND(G194="Prov",H194="Sum"),(H194="PC Sum")),". . . . . . . . .00",IF(ISERR(G194*H194),"",IF(G194*H194=0,"",ROUND(G194*H194,2)))) -> 
C195: .03 | D195: Materials used | F195: m³ | G195: 10 | I195: =IF(OR(AND(G195="Prov",H195="Sum"),(H195="PC Sum")),". . . . . . . . .00",IF(ISERR(G195*H195),"",IF(G195*H195=0,"",ROUND(G195*H195,2)))) -> 
B197: PC 60 | C197: DIRECTIONAL DRILLING | I197: =IF(OR(AND(G197="Prov",H197="Sum"),(H197="PC Sum")),". . . . . . . . .00",IF(ISERR(G197*H197),"",IF(G197*H197=0,"",ROUND(G197*H197,2)))) -> 
C199: DRILLING: ROAD CROSSING 11
L200: `
B201: PC.61 | C201: Design and site establishment | F201: sum | G201: 1 | I201: =IF(OR(AND(G201="Prov",H201="Sum"),(H201="PC Sum")),". . . . . . . . .00",IF(ISERR(G201*H201),"",IF(G201*H201=0,"",ROUND(G201*H201,2)))) -> 
B203: PC.62 | C203: Temporary works for directional drilling | F203: sum | G203: 1
B205: PC.63 | C205: Directional drilling and installation of
C206: pipe or cable sleeve:
C208: .01 | D208: 710 mm dia hdpe pipe | F208: m | G208: 45
B210: PC.64 | C210: Extra over items PC 62 and PC 63 for
C211: unforeseen rock or boulders | F211: m³ | G211: 18
B213: PC.66 | C213: De-establish quipment on site | F213: sum | G213: 1
B215: PC.67 | C215: Standing time for directional drilling
C216: team and equipment | F216: h | G216: 40
B218: PC.68 | C218: Stabilization of unstable areas or
C219: grouting of voids where ordered:
C221: .01 | D221: Provision and establishment of
D222: equipment on Site, and removal on
D223: completion of operation | F223: sum | G223: 1
C225: .02 | D225: Operation of equipment | F225: day | G225: 10
C227: .03 | D227: Materials used | F227: m³ | G227: 10
I228: =IF(OR(AND(G228="Prov",H228="Sum"),(H228="PC Sum")),". . . . . . . . .00",IF(ISERR(G228*H228),"",IF(G228*H228=0,"",ROUND(G228*H228,2)))) -> 
A230: PART PC | B230: Carried forward
I234: PARTICULAR SPECIFICATION PC
A235: PAYMENT
A236: REFERS | B236: ITEM | E236: DESCRIPTION | F236: UNIT | G236: QUAN- | H236: RATE | I236: AMOUNT
A237: TO | B237: NO | G237: TITY
C239: Brought forward
I241: =IF(OR(AND(G241="Prov",H241="Sum"),(H241="PC Sum")),". . . . . . . . .00",IF(ISERR(G241*H241),"",IF(G241*H241=0,"",ROUND(G241*H241,2)))) -> 
B242: PC 70 | C242: DIRECTIONAL DRILLING | I242: =IF(OR(AND(G242="Prov",H242="Sum"),(H242="PC Sum")),". . . . . . . . .00",IF(ISERR(G242*H242),"",IF(G242*H242=0,"",ROUND(G242*H242,2)))) -> 
I243: =IF(OR(AND(G243="Prov",H243="Sum"),(H243="PC Sum")),". . . . . . . . .00",IF(ISERR(G243*H243),"",IF(G243*H243=0,"",ROUND(G243*H243,2)))) -> 
C244: DRILLING: ROAD CROSSING 12
B246: PC.71 | C246: Design and site establishment | F246: sum | G246: 1 | I246: =IF(OR(AND(G246="Prov",H246="Sum"),(H246="PC Sum")),". . . . . . . . .00",IF(ISERR(G246*H246),"",IF(G246*H246=0,"",ROUND(G246*H246,2)))) -> 
B248: PC.72 | C248: Temporary works for directional drilling | F248: sum | G248: 1 | I248: =IF(OR(AND(G248="Prov",H248="Sum"),(H248="PC Sum")),". . . . . . . . .00",IF(ISERR(G248*H248),"",IF(G248*H248=0,"",ROUND(G248*H248,2)))) -> 
B250: PC.73 | C250: Directional drilling and installation of
C251: pipe or cable sleeve:
C253: .01 | D253: 630 mm dia hdpe pipe | F253: m | G253: 30 | I253: =IF(OR(AND(G253="Prov",H253="Sum"),(H253="PC Sum")),". . . . . . . . .00",IF(ISERR(G253*H253),"",IF(G253*H253=0,"",ROUND(G253*H253,2)))) -> 
B255: PC.74 | C255: Extra over items PC 72 and PC 73 for
C256: unforeseen rock or boulders | F256: m³ | G256: 9 | I256: =IF(OR(AND(G256="Prov",H256="Sum"),(H256="PC Sum")),". . . . . . . . .00",IF(ISERR(G256*H256),"",IF(G256*H256=0,"",ROUND(G256*H256,2)))) -> 
B258: PC.76 | C258: De-establish quipment on site | F258: sum | G258: 1 | I258: =IF(OR(AND(G258="Prov",H258="Sum"),(H258="PC Sum")),". . . . . . . . .00",IF(ISERR(G258*H258),"",IF(G258*H258=0,"",ROUND(G258*H258,2)))) -> 
B260: PC.77 | C260: Standing time for directional drilling | I260: =IF(OR(AND(G260="Prov",H260="Sum"),(H260="PC Sum")),". . . . . . . . .00",IF(ISERR(G260*H260),"",IF(G260*H260=0,"",ROUND(G260*H260,2)))) -> 
C261: team and equipment | F261: h | G261: 80
B263: PC.78 | C263: Stabilization of unstable areas or
C264: grouting of voids where ordered:
C266: .01 | D266: Provision and establishment of
D267: equipment on Site, and removal on
D268: completion of operation | F268: sum | G268: 1 | I268: =IF(OR(AND(G268="Prov",H268="Sum"),(H268="PC Sum")),". . . . . . . . .00",IF(ISERR(G268*H268),"",IF(G268*H268=0,"",ROUND(G268*H268,2)))) -> 
I269: =IF(OR(AND(G269="Prov",H269="Sum"),(H269="PC Sum")),". . . . . . . . .00",IF(ISERR(G269*H269),"",IF(G269*H269=0,"",ROUND(G269*H269,2)))) -> 
C270: .02 | D270: Operation of equipment | F270: day | G270: 10 | I270: =IF(OR(AND(G270="Prov",H270="Sum"),(H270="PC Sum")),". . . . . . . . .00",IF(ISERR(G270*H270),"",IF(G270*H270=0,"",ROUND(G270*H270,2)))) -> 
I271: =IF(OR(AND(G271="Prov",H271="Sum"),(H271="PC Sum")),". . . . . . . . .00",IF(ISERR(G271*H271),"",IF(G271*H271=0,"",ROUND(G271*H271,2)))) -> 
C272: .03 | D272: Materials used | F272: m³ | G272: 10 | I272: =IF(OR(AND(G272="Prov",H272="Sum"),(H272="PC Sum")),". . . . . . . . .00",IF(ISERR(G272*H272),"",IF(G272*H272=0,"",ROUND(G272*H272,2)))) -> 
I304: =IF(OR(AND(G304="Prov",H304="Sum"),(H304="PC Sum")),". . . . . . . . .00",IF(ISERR(G304*H304),"",IF(G304*H304=0,"",ROUND(G304*H304,2)))) -> 
B306: TOTAL SECTION PARTICULAR SPECIFICATION PC CARRIED TO SUMMARY

Sheet PART PD
I2: PARTICULAR SPECIFICATION PD
A4: PAYMENT
A5: REFERS | B5: ITEM | E5: DESCRIPTION | F5: UNIT | G5: QUAN- | H5: RATE | I5: AMOUNT
A6: TO | B6: NO | G6: TITY
I7: =IF(OR(AND(G7="Prov",H7="Sum"),(H7="PC Sum")),". . . . . . . . .00",IF(ISERR(G7*H7),"",IF(G7*H7=0,"",ROUND(G7*H7,2)))) -> 
A8: PD 10 | C8: BUILDING WORK
B10: PD.08 | C10: Miscellaneous work:
C12: .01 | D12: Cast-in 50mm dia sleeves for electric cable access | F12: sum | G12: 1 | I12: =IF(OR(AND(G12="Prov",H12="Sum"),(H12="PC Sum")),". . . . . . . . .00",IF(ISERR(G12*H12),"",IF(G12*H12=0,"",ROUND(G12*H12,2)))) -> 
D13: to the water meter
B15: PD.09 | C15: Miscellaneous items:
C17: Measured by area:
C19: Soil insecticide
C21: .01 | D21: Soil insecticide poisoning under footings,
D22: bases, floors, etc as specified by the
D23: Architect with a ten year guarantee | F23: m² | G23: 256
C25: Waterproofing
C27: 250 Micron damp proof sheeting to under floor slab
C29: .01 | D29: Chamber 1 & 2 | F29: m² | G29: 181
C31: Derbigum (or similar approved) fusion bonded
C32: waterproofing including turn-ups, sealing along
C33: edges andbituminous paint coat:
C35: .02 | D35: Flat roofs including sides and
D36: tops of upstand beams | F36: m² | G36: 82
B70: TOTAL PARTICULAR SPECIFICATION PD CARRIED TO SUMMARY

Sheet ELECTRICAL
A2: ELECTRICAL WORKS
A4: PAYMENT
A5: REFERS | B5: ITEM | E5: DESCRIPTION | F5: UNIT | G5: QUAN- | H5: RATE | I5: AMOUNT
A6: TO | B6: NO | G6: TITY
I7: =IF(OR(AND(G7="Prov",H7="Sum"),(H7="PC Sum")),". . . . . . . . .00",IF(ISERR(G7*H7),"",IF(G7*H7=0,"",ROUND(G7*H7,2)))) -> 
C8: ELECTRICAL WORKS
C10: BILL 1: ELECTRICAL APPLICATION
C12: 1. This Bill of Quantities shall be read in
C13: conjunction with the Installer's Scope of
C14: Work, Technical Specifications and the
C15: Engineer design drawings with all other
C16: Engineering decipline drawings.
C17: 2. All rates shall include Supply and Install.
C18: The items in this Bill shall
C19: include all wiring, cabling, connections,
C20: terminations, installation and termination
C21: accessories, possible cable-joints, cable-
C22: glands, cable-ties, cable-clips, clamps,
C23: shrouds, couplers, lugs, screw-caps, nuts,
C24: connectors, terminal strips, heat-shrink,
C25: insulating material, etc. for the electrical
C26: cables and conductors. It is the
C27: responsibility of the contractor to make a
C28: fully working system.
C29: 3. It is the responsibility of the contractor to
C30: ensure all items are allowed for in this Bill of
C31: Quantities.
C32: 4. NB: It is the responsibility of the
C33: contractor to supply a fully operational and
C34: compliant system.
C35: 5. All items in this Bill of quantities are
C36: remeasurable and only installed Quantities
C37: will be paid for.
B39: 100.00 | C39: Electricity application
B41: =B39+0.01 -> 100.01 | C41: Application to the electricity power supply | F41: Sum | G41: 1
C42: authority of Eskom for an 80A 400V coonection
B44: =B41+0.01 -> 100.02 | C44: Liaison with Eskom including all documentation | F44: Sum | G44: 1
C45: as may be required.
B47: =B44+0.01 -> 100.03 | C47: Liaison with main contractor | F47: Sum | G47: 1
B49: =B47+0.01 -> 100.04 | C49: Notices and safety / danger signs as per the | F49: Sum | G49: 1
C50: OHS Act.
B52: =B39+1 -> 101.00 | C52: Ancillaries and accessories
B54: =B52+0.01 -> 101.01 | C54: Any other item required for completion of the installation, | F54: Sum | G54: 1
C55: not specified else where - specify
B77: Total carried to summary
A80: ELECTRICAL WORKS
A82: PAYMENT
A83: REFERS | B83: ITEM | E83: DESCRIPTION | F83: UNIT | G83: QUAN- | H83: RATE | I83: AMOUNT
A84: TO | B84: NO | G84: TITY
I85: =IF(OR(AND(G85="Prov",H85="Sum"),(H85="PC Sum")),". . . . . . . . .00",IF(ISERR(G85*H85),"",IF(G85*H85=0,"",ROUND(G85*H85,2)))) -> 
C86: BILL 2: PRELIMINARY AND GENERAL
C88: 1. This Bill of Quantities shall be read in
C89: conjunction with the Installer's Scope of
C90: Work, Technical Specifications and the
C91: Engineer design drawings with all other
C92: Engineering decipline drawings.
C94: 2. All rates shall include Supply and Install.
C95: These items shall the items in this Bill shall
C96: include all wiring, cabling, connections,
C97: terminations, installation and termination
C98: accessories, possible cable-joints, cable-
C99: glands, cable-ties, cable-clips, clamps,
C100: shrouds, couplers, lugs, screw-caps, nuts,
C101: connectors, terminal strips, heat-shrink,
C102: insulating material, etc. for the electrical
C103: cables and conductors. It is the
C104: responsibility of the contractor to make a
C105: fully working system.
C107: 3. It is the responsibility of the contractor to
C108: ensure all items are allowed for in this Bill of
C109: Quantities.
C111: 4. NB: It is the responsibility of the
C112: contractor to supply a fully operational and
C113: compliant system.
C115: 5. All items in this Bill of quantities are
C116: remeasurable and only installed Quantities
C117: will be paid for.
B119: 200.00 | C119: Liason with other parties
I120: =IF(OR(AND(G120="Prov",H120="Sum"),(H120="PC Sum")),". . . . . . . . .00",IF(ISERR(G120*H120),"",IF(G120*H120=0,"",ROUND(G120*H120,2)))) -> 
B121: =B119+0.01 -> 200.01 | C121: Liaison with main contractor | F121: Sum | G121: 1
B123: =B119+1 -> 201.00 | C123: Documentation
B125: =B123+0.01 -> 201.01 | C125: For Construction drawings, hard copy and CD | F125: Sets | G125: 3
B127: =B125+0.01 -> 201.02 | C127: Detailed Scope of Works, Project Safety Plan | F127: Sets | G127: 3
C128: and Safe Work Method Statement
B130: =B127+0.01 -> 201.03 | C130: As-built drawings in Auto CAD/Revit format, | F130: Sets | G130: 3
C131: on a CD
B133: =B130+0.01 -> 201.04 | C133: Operators and Maintenance Manuals, | F133: Sets | G133: 3
C134: hard copy and CD
B136: =B133+0.01 -> 201.05 | C136: Commissioning Sheets and Installation | F136: Sets | G136: 3
C137: Checklists
B139: 201.06 | C139: Labeling of all devices, equipment and cables | F139: Sum | G139: 1
B141: 201.07 | C141: Drawings for approval (Engineers approval) | F141: Sum | G141: 1
B143: 202.00 | C143: Testing and commissioning
B145: 202.01 | C145: Test and commission of the electrical installation | F145: Sum | G145: 1
C146: and area lighting system and issue reports
C147: and certificates as required by the standards
C148: and specifications
B151: Carried forward
A154: ELECTRICAL WORKS
A156: PAYMENT
A157: REFERS | B157: ITEM | E157: DESCRIPTION | F157: UNIT | G157: QUAN- | H157: RATE | I157: AMOUNT
A158: TO | B158: NO | G158: TITY
B160: =B143+1 -> 203.00 | C160: Training
B162: =B160+0.01 -> 203.01 | C162: End-user training | F162: Sum | G162: 1
B164: =B160+1 -> 204.00 | C164: Warranty
B166: =B164+0.01 -> 204.01 | C166: Mounting structure: Workmanship | F166: Sum | G166: 1
C167: guarantee/Product replacement warranty
C168: of 10 years
B170: =B166+0.01 -> 204.02 | C170: All inclusive post practical completion 12 month | F170: Sum | G170: 1
C171: SLA for complete installation
B173: =B170+0.01 -> 204.03 | C173: Balance of mechanical and electrical Works: | F173: Sum | G173: 1
C174: Workmanship guarantee/Product replacement
C175: warranty of 10 years
B177: =B164+1 -> 205.00 | C177: Preliminary and General
B179: =B177+0.01 -> 205.01 | C179: Time related P&G's | F179: Sum | G179: 1
B181: =B179+0.01 -> 205.02 | C181: Fixed P&G's | F181: Sum | G181: 1
B183: =B181+0.01 -> 205.03 | C183: Site establishment and disestablishment | F183: Sum | G183: 1
B185: =B177+1 -> 206.00 | C185: Other costs
B187: =B185+0.01 -> 206.01 | C187: Allow for all costs which the Contractor may | F187: Sum | G187: 1
C188: incur in terms of any or all of description in
C189: these documents and of the drawings which
C190: costs are not specifically covered in the
C191: schedule below. Submit full details.
I192: =IF(OR(AND(G192="Prov",H192="Sum"),(H192="PC Sum")),". . . . . . . . .00",IF(ISERR(G192*H192),"",IF(G192*H192=0,"",ROUND(G192*H192,2)))) -> 
C193: NOTE: Value related P&G's should be
C194: included in the tendered rates
B222: Total carried to summary
A226: ELECTRICAL WORKS
A228: PAYMENT
A229: REFERS | B229: ITEM | E229: DESCRIPTION | F229: UNIT | G229: QUAN- | H229: RATE | I229: AMOUNT
A230: TO | B230: NO | G230: TITY
I231: =IF(OR(AND(G231="Prov",H231="Sum"),(H231="PC Sum")),". . . . . . . . .00",IF(ISERR(G231*H231),"",IF(G231*H231=0,"",ROUND(G231*H231,2)))) -> 
C232: BILL 3: DISTRIBUTION BOARDS
C234: 1. This Bill of Quantities shall be read in
C235: conjunction with the Installer's Scope of
C236: Work, Technical Specifications and the
C237: Engineer design drawings with all other
C238: Engineering decipline drawings.
C239: 2. All rates shall include Supply and Install.
C240: These items shall the items in this Bill shall
C241: include all wiring, cabling, connections,
C242: terminations, installation and termination
C243: accessories, possible cable-joints, cable-
C244: glands, cable-ties, cable-clips, clamps,
C245: shrouds, couplers, lugs, screw-caps, nuts,
C246: connectors, terminal strips, heat-shrink,
C247: insulating material, etc. for the electrical
C248: cables and conductors. It is the
C249: responsibility of the contractor to make a
C250: fully working system.
C251: 3. It is the responsibility of the contractor to
C252: ensure all items are allowed for in this Bill of
C253: Quantities.
C254: 4. NB: It is the responsibility of the
C255: contractor to supply a fully operational and
C256: compliant system.
C257: 5. The electrical cable and wiring shall
C258: comply with the SANS wiring colour codes:
C259: Protective earth (PE) - green-yellow
C260: Neutral (N) - black
C261: Line, single phase (L) - red
C262: Line, three phase (L1) - red
C263: Line, three phase (L2) - yellow
C264: Line, three phase (L3) - blue
C265: 6. Supply, testing, deliver, off-loading, and
C266: commissioning of distribution boards
C267: complete with test certifications as per SANS
C268: 61439-1 and IEC 61439-1 standards for
C269: distribution boars, including factory
C270: inspection, all equipment pre fitted in the
C271: factory complete with busbars, accessories,
C272: earthing and conduit terminations in
C273: accordance with electrical specifications.
C274: 7. The distribution board requirements are
C275: shown on the single line diagrams
C276: (schematic diagrams) drawings.
C277: 8. Shop drawings shall be submitted to the
C278: Engineer for formal approval before any
C279: manufacturing commences.
B281: 300.00 | C281: Distribution Boards
B283: =B281+0.01 -> 300.01 | C283: DB - 01 (Valve Access Chamber)
C284: Refer to single line diagram for size and rating | F284: No | G284: 1
B286: =B281+1 -> 301.00 | C286: Ancillaries and accessories
B288: =B286+0.01 -> 301.01 | C288: Any other item required for completion of the
C289: installation, not specified else where - specify | F289: Sum | G289: 1
B291: =B286+1 -> 302.00 | C291: Certificate of Compliance
B293: =B291+0.01 -> 302.01 | C293: Issue CoC completion of complete electrical | F293: Sum | G293: 1
C294: installation
B298: Total carried to summary
A301: ELECTRICAL WORKS
A303: PAYMENT
A304: REFERS | B304: ITEM | E304: DESCRIPTION | F304: UNIT | G304: QUAN- | H304: RATE | I304: AMOUNT
A305: TO | B305: NO | G305: TITY
I306: =IF(OR(AND(G306="Prov",H306="Sum"),(H306="PC Sum")),". . . . . . . . .00",IF(ISERR(G306*H306),"",IF(G306*H306=0,"",ROUND(G306*H306,2)))) -> 
C307: BILL 4: LOW VOLTAGE CABLES
C309: 1. This Bill of Quantities shall be read in
C310: conjunction with the Installer's Scope of
C311: Work, Technical Specifications and the
C312: Engineer design drawings with all other
C313: Engineering decipline drawings.
... 388 more rows

Sheet MECHANICAL
G2: OPERATING AND MAINTENANCE MANUALS
A5: PAYMENT | B5: ITEM | C5: DESCRIPTION | D5: UNIT | E5: QUAN- | F5: RATE | G5: AMOUNT
A6: REFERS | B6: NO | E6: TITY
A9: ZUT 0002 | B9: 20 | C9: OPERATING AND MAINTENANCE MANUALS | G9: =IF($E9>0,IF($E9="-","Rate Only",$E9*F9),"") -> 
C11: DRAWING 111242-0000-DR-WW-0516 to 0519
B13: 20.01 | C13: Supply and Deliver O&M manual (for all components shown and referenced in drawings) | D13: Sum | E13: 1
A62: Total carried to summary
G65: MANUALLY OPERATED CHAIN HOIST
A68: PAYMENT | B68: ITEM | C68: DESCRIPTION | D68: UNIT | E68: QUAN- | F68: RATE | G68: AMOUNT
A69: REFERS | B69: NO | E69: TITY
A72: ZUT 1003 | B72: 30 | C72: MANUALLY OPERATED CHAIN HOIST | G72: =IF($E72>0,IF($E72="-","Rate Only",$E72*F72),"") -> 
A74: 1003.15.1 | B74: 30.01 | C74: Supply and Deliver
B76: 30.01.01 | C76: 1 Ton manually operated chain hoist complete with accessories | D76: No. | E76: 1
A78: 1003.15.2 | B78: 30.02 | C78: Installation, Testing and Commissioning
B80: 30.02.01 | C80: 1 Ton manually operated chain hoist complete with accessories | D80: No. | E80: 1
A120: Total carried to summary
G123: VENTILATION
A126: PAYMENT | B126: ITEM | C126: DESCRIPTION | D126: UNIT | E126: QUAN- | F126: RATE | G126: AMOUNT
A127: REFERS | B127: NO | E127: TITY
A130: ZUT 1008 | B130: 40 | C130: VENTILATION | G130: =IF($E130>0,IF($E130="-","Rate Only",$E130*F130),"") -> 
C132: DRAWING 111242-0000-DR-WW-0516 and 0518 | G132: =IF($E132>0,IF($E132="-","Rate Only",$E132*F132),"") -> 
A134: 1008.17.1 | B134: 40.01 | C134: Supply and Deliver
B136: 40.01.01 | C136: Louvred roof cowls, complete with shoe, upstand base bracket and vermin mesh 1000 mm (W) x 1000 mm (B) x 660 mm (H) | D136: No. | E136: 2
B138: 40.01.02 | C138: 400 Diam. Jet Fans, complete with anti-vibration ceiling mount foot brackets and earthing connections | D138: No. | E138: 3
A140: 1008.17.2 | B140: 40.02 | C140: Installation, Testing and Commissioning
B142: 40.02.01 | C142: Louvred roof cowls, complete with shoe, upstand base bracket and vermin mesh 1000 mm (W) x 1000 mm (B) x 660 mm (H) | D142: No. | E142: 2
B144: 40.02.02 | C144: 400 Diam. Jet Fans, complete with anti-vibration ceiling mount foot brackets and earthing connections | D144: No. | E144: 3
C146: DRAWING 111242-0000-DR-WW-0516 to 0517
A148: 1008.17.1 | B148: 40.03 | C148: Supply and Deliver
B150: 40.03.01 | C150: Ventilation supply system for Chamber 1: - 2 x Axial fans complete with floor mouted foot brackets and earthing connection - 3240 l/s @ 400 Pa. - 2 x 2.2 kW, 3 phase isolators. - Associated air terminals, spiral ducting, fittings, plenums, filter banks, support brackets and ancillaries as per drawing 111242-DR-WW-0516 | D150: No. | E150: 1
B152: 40.03.02 | C152: Ventilation extraction system for the Chamber 2: - 2 x Axial fans complete with floor mouted foot brackets and earthing connection - 3240 l/s @ 200 Pa. - 2 x 2.2 kW, 3 phase isolators. - Associated air terminals, spiral ducting, fittings, support brackets and ancillaries as per drawing 111242-DR-WW-0517. | D152: No. | E152: 1
B154: 40.03.03 | C154: Control panel, thermostats and connections | D154: No. | E154: 1
A156: Total carried to summary
G159: VENTILATION
A162: PAYMENT | B162: ITEM | C162: DESCRIPTION | D162: UNIT | E162: QUAN- | F162: RATE | G162: AMOUNT
A163: REFERS | B163: NO | E163: TITY
A166: 1008.17.2 | B166: 40.04 | C166: Installation, Testing and Commissioning
B168: 40.04.01 | C168: Ventilation system for the Pressure Reducing Valve Chamber (see item 40.03.01 and 40.03.03) | D168: No. | E168: 1
B170: 40.05 | C170: Others
B172: 40.05.01 | C172: Others (please state any other items necessary to complete the installation and allow full functionality the ventilation system) | D172: Sum | E172: 1
C173: P&G's for Ventilation system | D173: Sum | E173: 1
A218: Total carried to summary
G221: PRESSURE REDUCING VALVE SYSTEM
A224: PAYMENT | B224: ITEM | C224: DESCRIPTION | D224: UNIT | E224: QUAN- | F224: RATE | G224: AMOUNT
A225: REFERS | B225: NO | E225: TITY
B228: 900 | C228: PRESSURE REDICUNG VALVE SYSTEM
C230: DRAWING 111242-0000-DR-WW-0519 and 0520
B232: 900.01 | C232: Supply, Deliver
B234: 900.01.01 | C234: Concentric Reducer, DN700 x DN300 x 6 mm SANS 719 Grade C; Flanged both ends SANS 1123 Table 1600/3 (RF) | D234: No | E234: 2
B236: 900.01.02 | C236: DN300 x 6 mm 90 Degree Elbow SANS 719 Grade C; Flanged both ends SANS 1123 Table 1600/3 (RF) | D236: No | E236: 4
B238: 900.01.03 | C238: DN300 x 10 mm Cross-Tee SANS 719 Grade C; Flanged all ends SANS 1123 Table 1600/3 (RF) | D238: No | E238: 2
B240: 900.01.04 | C240: Resilient Seal Gate Valve DN300 PN16; Flanged SANS 1123 Table 1600/3 (RF) | D240: No | E240: 6
B242: 900.01.05 | C242: Dismantling Joint DN300 PN16; Flanged SANS 1123 Table 1600/3 (RF) | D242: No | E242: 9
B244: 900.01.06 | C244: Spool Piece DN300 x 6 mm SANS 719 Grade C; Flanged both ends SANS 1123 Table 1600/3 (RF) | D244: No | E244: 3
B246: 900.01.07 | C246: Orifice Plate DN300 with 159 mm Opening | D246: No | E246: 3
B248: 900.01.08 | C248: Spool Piece DN300 x 6 mm SANS 719 Grade C; Flanged both ends SANS 1123 Table 1600/3 (RF) With pipe anchor support | D248: No | E248: 3
B250: 900.01.09 | C250: Pressure Reducing Valve DN300 PN16, Flanged both ends SANS 1123 Table 1600/3 (RF) | D250: No | E250: 3
B252: 900.01.10 | C252: Spool Piece DN300 x 6 mm SANS 719 Grade C; Flanged both ends SANS 1123 Table 1600/3 (RF) With pipe anchor support | D252: No | E252: 3
B254: 900.01.11 | C254: Strainer DN300 PN16; Flanged both ends SANS 1123 Table 1600/3 (RF) | D254: No | E254: 3
B256: 900.02 | C256: Installation Testing and Commissioning
B258: 900.02.01 | C258: Concentric Reducer, DN700 x DN300 x 6 mm SANS 719 Grade C; flanged both ends SANS 1123 Table 1600/3 (RF) | D258: No | E258: 2
B260: 900.02.02 | C260: DN300 x 6 mm 90 Degree Elbow SANS 719 Grade C; Flanged both ends SANS 1123 Table 1600/3 (RF) | D260: No | E260: 4
B262: 900.02.03 | C262: DN300 x 10 mm Cross-Tee SANS 719 Grade C; Flanged all ends SANS 1123 Table 1600/3 (RF) | D262: No | E262: 2
B264: 900.02.04 | C264: Resilient Seal Gate Valve DN300 PN16; Flanged SANS 1123 Table 1600/3 (RF) | D264: No | E264: 6
B266: 900.02.05 | C266: Dismantling Joint DN300 PN16; Flanged SANS 1123 Table 1600/3 (RF) | D266: No | E266: 9
B268: 900.02.06 | C268: Spool Piece DN300 x 6 mm SANS 719 Grade C; Flanged both ends SANS 1123 Table 1600/3 (RF) | D268: No | E268: 3
A273: Total carried to summary
G276: PRESSURE REDUCING VALVE SYSTEM
A279: PAYMENT | B279: ITEM | C279: DESCRIPTION | D279: UNIT | E279: QUAN- | F279: RATE | G279: AMOUNT
A280: REFERS | B280: NO | E280: TITY
B283: 900.02.07 | C283: Orifice Plate DN300 with 159 mm Opening | D283: No | E283: 3
B285: 900.02.08 | C285: Spool Piece DN300 x 6 mm SANS 719 Grade C; Flanged both ends SANS 1123 Table 1600/3 (RF) With pipe anchor support | D285: No | E285: 3
B287: 900.02.09 | C287: Pressure Reducing Valve DN300 PN16, Flanged both ends SANS 1123 Table 1600/3 (RF) | D287: No | E287: 3
B289: 900.02.10 | C289: Spool Piece DN300 x 6 mm SANS 719 Grade C; Flanged both ends SANS 1123 Table 1600/3 (RF) With pipe anchor support | D289: No | E289: 3
B291: 900.02.11 | C291: Strainer DN300 PN16; Flanged both ends SANS 1123 Table 1600/3 (RF) | D291: No | E291: 3
A343: Total carried to summary
G346: SUMMARY
A349: PAYMENT | B349: ITEM | C349: DESCRIPTION | D349: UNIT | E349: QUAN- | F349: RATE | G349: AMOUNT
A350: REFERS | B350: NO | E350: TITY
A353: SUM | C353: SUMMARY
A355: ZUT 0002 | C355: Operating and Maintenance Manuals
A357: ZUT 1003 | C357: Lifting Equipment
A359: ZUT 1008 | C359: Ventilation
A361: ZUT | C361: Pressure Reducing Valve System
A411: TOTAL MECHANICAL WORKS CARRIED TO SUMMARY

Sheet SANS-SUM
A1: JOHANNESBURG WATER
A3: CONTRACT NO | C3: JW 14463
A5: FOR | C5: HALFWAY HOUSE WATER UPGRADE PROJECT
A7: SUMMARY OF SCHEDULE OF QUANTITIES: BULK WATER PIPELINE
A9: SANS 1200 A | B9: : | C9: GENERAL . . . . . . . . . . . . . . . . . . . . . . . . . . . . . . . . . . . . . . . . . . . . . . . . . . . . . . . . . . . . . . . . . | E9: R | G9: 566,652.45 | H9: =F9+G9 -> 566,652.45
A11: SANS 1200 A.1 | B11: : | C11: GENERAL (SMME VALUE OF WORK) . . . . . . . . . . . . . . . . . . . . . . . . . . . . . . . . . . . . . . . | E11: R
A13: SANS 1200 C | B13: : | C13: SITE CLEARANCE . . . . . . . . . . . . . . . . . . . . . . . . . . . . . . . . . . . . . . . . . . . . . . . . . . . . . . . . . . . | E13: R | G13: 3,593,438.00 | H13: =F13+G13 -> 3,593,438.00
A15: SANS 1200 D | B15: : | C15: EARTHWORKS . . . . . . . . . . . . . . . . . . . . . . . . . . . . . . . . . . . . . . . . . . . . . . . . . . . . . . . . . . . . . | E15: R | G15: 59,400.00 | H15: =F15+G15 -> 59,400.00
A17: SANS 1200 DB | B17: : | C17: EARTHWORKS (PIPE TRENCHES) . . . . . . . . . . . . . . . . . . . . . . . . . . . . . . . . | E17: R | H17: =F17+G17 -> 0.00
A19: SANS 1200 DK | B19: : | C19: GABIONS AND PITCHING . . . . . . . . . . . . . . . . . . . . . . . . . . . . . . . . . . . . . . . . . . . . . . . . . . . . . | E19: R | G19: 124,845.00 | H19: =F19+G19 -> 124,845.00
A21: SANS 2001 CC1 | B21: : | C21: CONCRETE (STRUCTURAL) . . . . . . . . . . . . . . . . . . . . . . . . . . . . . . . . . . . . . . . . . . . . . . | E21: R | H21: =F21+G21 -> 0.00
A23: SANS 1200 HA | B23: : | C23: STRUCTURAL STEELWORK (SUNDRY ITEMS) . . . . . . . . . . . . . . . . . . . . . . . | E23: R | H23: =F23+G23 -> 0.00
A25: SANS 1200 L | B25: : | C25: MEDIUM-PRESSURE PIPELINES. . . . . . . . . . . . . . . . . . . . . . . . . . . . . . . . . . . | E25: R | H25: =F25+G25 -> 0.00
A27: SANS 1200 LB | B27: : | C27: BEDDING (PIPES) . . . . . . . . . . . . . . . . . . . . . . . . . . . . . . . . . . . . . . . . . . . . . . . . . . . . . . . . . . . | E27: R | H27: =F27+G27 -> 0.00
A29: SANS 1200 LE | B29: : | C29: STORMWATER DRAINAGE . . . . . . . . . . . . . . . . . . . . . . . . . . . . . . . . . . . . . . . . . . . . . | E29: R | H29: =F29+G29 -> 0.00
A31: SANS 1200 LG | B31: : | C31: PIPE JACKING . . . . . . . . . . . . . . . . . . . . . . . . . . . . . . . . . . . . . . . . . . . . . . . . . . . . . . | E31: R | H31: =F31+G31 -> 0.00
A33: SANS 1200 ME | B33: : | C33: SUBBASE . . . . . . . . . . . . . . . . . . . . . . . . . . . . . . . . . . . . . . . . . . . . . . . . . . . . . . . . . . . . . . | E33: R
A35: SANS 1200 MF | B35: : | C35: BASE . . . . . . . . . . . . . . . . . . . . . . . . . . . . . . . . . . . . . . . . . . . . . . . . . . . . . . . . . . . . . . | E35: R | H35: =F35+G35 -> 0.00
A37: PARTICULAR SPECIFICATION PC: DIRECTIONAL DRILLING . . . . . . . . . . . . . . . . . . . . . . . . . . . . . . . . . . . . . . . . | E37: R | H37: =F37+G37 -> 0.00
A39: PARTICULAR SPECIFICATION PD: BUILDING WORK . . . . . . . . . . . . . . . . . . . . . . . . . . . . . . . . . . . . . . . . | E39: R | H39: =F39+G39 -> 0.00
A41: ELECTRICAL : . . . . . . . . . . . . . . . . . . . . . . . . . . . . . . . . . . . . . . .. . . . . . . . . | C41: . . . . . . . . . . . . . . . . . . . . . . . . . . . . . . . . . . . . . . . . . . . . . . . . . . . . . . . . . . . . . . . . . . . . . . . . . . . | E41: R | H41: =F41+G41 -> 0.00
A43: MECHANICAL : . . . . . . . . . . . . . . . . . . . . . . . . . . . . . . . . . . . . . . .. . . . . . . . . | C43: . . . . . . . . . . . . . . . . . . . . . . . . . . . . . . . . . . . . . . . . . . . . . . . . . . . . . . . . . . . . . . . . . . . . . . . . . . . | E43: R
A46: TOTAL OF SCHEDULE OF QUANTITIES CARRIED TO CALCULATION OF TENDER SUM | E46: R | G46: =SUM(G9:G44) -> 4,344,335.45 | H46: =F46+G46 -> 4,344,335.45
A49: CALCULATION OF TENDER SUM
A51: TOTAL OF SCHEDULE OF QUANTITIES . . . . . . . . . . . . . . . . . . . . . . . . . . . . . . . . . . . . . . . . . . . . . | E51: R | G51: =G46/F46 ->  | H51: =H46 -> 4,344,335.45
A53: CONTINGENCIES . . . . . . . . . . . . . . . . . . . . . . . . . . . . . . . . . . . . . . . . . . . . . . . . . . . . . . . . . . . . . . | E53: R
A54: The tenderer shall add 10% of the total of Schedule of Quantities for Contingencies
A56: ESCALATION (6.7%). . . . . . . . . . . . . . . . . . . . . . . . . . . . . . . . . . . . . . . . . . . . . . . . . . . . . . . . . . . . | E56: R
A59: SUBTOTAL . . . . . . . . . . . . . . . . . . . . . . . . . . . . . . . . . . . . . . . . . . . . . . . . . . . . . . . . . . . . . . . . . . . | E59: R | H59: =SUM(H50:H58) -> 4,344,335.45
A61: VALUE-ADDED TAX (VAT) . . . . . . . . . . . . . . . . . . . . . . . . . . . . . . . . . . . . . . . . . . . . . . . . . . . . . . . . . . . . . . . . . . . . . . . . . . . . . . . . . | E61: R
A62: The tenderer shall add 15% of the subtotal for value-added tax | H62: =H59*0.15 -> 651,650.32
A65: TENDER SUM CARRIED TO FORM OF TENDER | E65: R | H65: =SUM(H59:H64) -> 4,995,985.77
